{"text_format":"1","workbook":"xlsx","n_sheets":14,"sheets":["Introduction","Contents","Dashboard","MPA Data","1. Management Framework","2. Addressing Activities & Thre","3. Research & Monitoring","4. Outreach & Engagement","5. Management Effectiveness","Marine Mammal Identification","Definitions & Help","Scorecard Counts","Data Validation","References"],"not_rendered":{"charts":4,"images":3,"macros":1,"external_links":0,"defined_names":2,"comments":2,"pivot_tables":0},"unopened":[],"bounds":{"document_bytes":16777216,"sheet_cells":100000,"rows_first":2000,"rows_last":500,"rows_between":2000,"halvings":0,"cell_chars":16384,"cell_head_chars":4096},"cells_cut":0,"cells_raw":0,"read":"whole","date_system":"1900"}

{"sheet":"Introduction","index":0,"n_rows":24,"n_cols":4,"rows_kept":24,"cut":false,"hidden":false,"merged":[[23,1,23,5],[6,1,6,5],[1,1,1,5],[2,1,2,5],[4,1,4,5],[10,1,10,5],[8,1,8,5],[20,3,21,3],[13,2,13,5],[14,2,14,5],[15,2,15,5],[16,2,16,5],[17,2,17,5]]}
[]
[]
[null,"Self-Assessment Tool (SAT)"]
[]
[null,"The SAT has been designed and created for the use of MPA managers, stakeholder and any other relevant parties to assess the extent to which marine mammals are included in their management plans."]
[]
[null,"The SAT is comprised of questions related to the 23 factsheet topics (which can be found here). The answers to these questions have all been assigned a numerical value, the total of which shows the extent to which marine mammals have been accounted for in the management plan, and areas in which this can be improved upon."]
[]
[null,"As you progress through the SAT, you will be prompted to fill out various sections and answer a range of questions. Please ensure that you complete all the questions to enable dashboard outputs."]
[]
[null,"Prior to completing the SAT, we highly advise that you \"Save As\". This will allow you to make a copy of the SAT and retain a blank version for editing. Once you have saved a copy, complete the information below and follow the buttons through the SAT."]
[]
[]
[null,"Name: "]
[null,"Function: "]
[null,"Email:"]
[null,"Mobile:"]
[null,"Date: "]
[]
[]
[null,null,null,"Continue"]
[]
[]
[null,"www.marine-mammals.info"]

{"sheet":"Contents","index":1,"n_rows":20,"n_cols":2,"rows_kept":20,"cut":false,"hidden":false,"merged":[[0,0,0,6],[3,1,3,5],[5,1,5,5],[7,1,7,5],[21,1,21,5],[1,0,1,6],[9,1,9,5],[11,1,11,5],[13,1,13,5],[15,1,15,5],[17,1,17,5],[19,1,19,5]]}
["Self-Assessment Tool Contents & Quick Jump"]
["Use the below buttons to jump to sheets in the SAT"]
[]
[null,"DASHBOARD"]
[]
[null,"MPA DATA"]
[]
[null,"1. MANAGEMENT FRAMEWORK"]
[]
[null,"2. ADDRESSING ACTIVITIES & THREATS"]
[]
[null,"3. RESEARCH & MONITORING"]
[]
[null,"4. OUTREACH & MONITORING"]
[]
[null,"5. MANAGEMENT EFFECTIVENESS"]
[]
[null,"MARINE MAMMAL IDENTIFICATION"]
[]
[null,"DEFINITIONS & HELP"]

{"sheet":"Dashboard","index":2,"n_rows":48,"n_cols":18,"rows_kept":48,"cut":false,"hidden":false,"merged":[[44,1,44,4],[45,1,45,4],[46,1,46,4],[47,1,47,4],[12,1,13,7],[12,9,13,15],[39,9,40,15],[42,1,42,4],[43,1,43,4],[39,1,40,7],[0,0,0,15],[2,1,2,6],[3,1,3,3],[3,10,8,10],[3,11,8,12],[4,1,4,3],[5,1,5,3],[6,1,6,3],[7,1,7,3],[8,1,8,3]]}
["Marine Management Dashboard"]
[]
[null,"Marine Management Group Scores"]
[null,"Group",null,null,"Score","Max Score","%",null,null,null,"Management Effectiveness Score",{"$f":"(SUM(E5:E9))/(SUM(F5:F9))*10","v":{"$error":"#N/A"}}]
[null,"Management Framework",null,null,{"$f":"'Scorecard Counts'!O39","v":{"$error":"#N/A"}},{"$f":"'Scorecard Counts'!N39","v":42},{"$f":"'Scorecard Counts'!P39","v":{"$error":"#N/A"}},100,null,null,null,null,null,null,null,null,{"$f":"100-R5","v":{"$error":"#N/A"}},{"$f":"G10","v":{"$error":"#N/A"}}]
[null,"Activities & Threats",null,null,{"$f":"'Scorecard Counts'!O122","v":{"$error":"#N/A"}},{"$f":"'Scorecard Counts'!N122","v":96},{"$f":"'Scorecard Counts'!P122","v":{"$error":"#N/A"}},100]
[null,"Research & Monitoring",null,null,{"$f":"'Scorecard Counts'!O197","v":{"$error":"#N/A"}},{"$f":"'Scorecard Counts'!N197","v":81},{"$f":"'Scorecard Counts'!P197","v":{"$error":"#N/A"}},100]
[null,"Outreach & Engagement ",null,null,{"$f":"'Scorecard Counts'!O233","v":{"$error":"#N/A"}},{"$f":"'Scorecard Counts'!N233","v":32},{"$f":"'Scorecard Counts'!P233","v":{"$error":"#N/A"}},100]
[null,"Management Effectiveness ",null,null,{"$f":"'Scorecard Counts'!O264","v":{"$error":"#N/A"}},{"$f":"'Scorecard Counts'!N264","v":33},{"$f":"'Scorecard Counts'!P264","v":{"$error":"#N/A"}},100]
[null,null,null,"Total",{"$f":"SUM(E5:E9)","v":{"$error":"#N/A"}},{"$f":"SUM(F5:F9)","v":284},{"$f":"(E10/F10)*100","v":{"$error":"#N/A"}}]
[]
[]
[null,"MPA Management Effectiveness Scores",null,null,null,null,null,null,null,"MPA Management Effectiveness Scores"]
[]
[]
[]
[]
[]
[]
[]
[]
[]
[]
[]
[]
[]
[]
[]
[]
[]
[]
[]
[]
[]
[]
[]
[]
[]
[]
[null,"MPA Threats",null,null,null,null,null,null,null,"MPA Activities & Threats"]
[]
[null,null,null,null,null,"Score","Max Score","%"]
[null,"5. Whale, dolphin and sirenia watching",null,null,null,{"$f":"'Scorecard Counts'!K54","v":{"$error":"#N/A"}},{"$f":"'Scorecard Counts'!L54","v":15},{"$f":"'Scorecard Counts'!M54","v":{"$error":"#N/A"}}]
[null,"6. Noise management",null,null,null,{"$f":"'Scorecard Counts'!K69","v":{"$error":"#N/A"}},{"$f":"'Scorecard Counts'!L69","v":14},{"$f":"'Scorecard Counts'!M69","v":{"$error":"#N/A"}}]
[null,"7. Entanglement in fishing gear and other installations",null,null,null,{"$f":"'Scorecard Counts'!K77","v":{"$error":"#N/A"}},{"$f":"'Scorecard Counts'!L77","v":8},{"$f":"'Scorecard Counts'!M77","v":{"$error":"#N/A"}}]
[null,"8. Marine Mammal By-catch (fishing)",null,null,null,{"$f":"'Scorecard Counts'!K99","v":{"$error":"#N/A"}},{"$f":"'Scorecard Counts'!L99","v":25},{"$f":"'Scorecard Counts'!M99","v":{"$error":"#N/A"}}]
[null,"9. Marine mammal collision / strike",null,null,null,{"$f":"'Scorecard Counts'!K112","v":{"$error":"#N/A"}},{"$f":"'Scorecard Counts'!L112","v":22},{"$f":"'Scorecard Counts'!M112","v":{"$error":"#N/A"}}]
[null,"10. Marine mammal strandings (by MPA management or stranding network etc.)",null,null,null,{"$f":"'Scorecard Counts'!K122","v":{"$error":"#N/A"}},{"$f":"'Scorecard Counts'!L122","v":12},{"$f":"'Scorecard Counts'!M122","v":{"$error":"#N/A"}}]

{"sheet":"MPA Data","index":3,"n_rows":49,"n_cols":19,"rows_kept":49,"cut":false,"hidden":false,"merged":[[46,10,46,16],[47,10,47,16],[48,10,48,16],[17,10,21,16],[23,10,27,16],[14,10,14,16],[15,10,15,16],[41,1,41,8],[29,10,33,16],[35,10,39,16],[42,1,42,8],[43,1,43,8],[7,1,7,8],[17,1,17,8],[18,1,18,8],[19,1,19,8],[20,1,20,8],[32,7,32,8],[33,7,33,8],[37,1,37,8],[38,1,38,8],[39,1,39,8],[35,1,35,8],[36,1,36,8],[29,1,29,6],[9,1,9,4],[2,18,2,19],[4,18,4,19],[29,7,29,8],[30,7,30,8],[31,7,31,8],[2,10,2,16],[3,10,3,16],[4,10,5,16],[6,10,6,16],[7,10,7,16],[8,10,8,16],[9,10,9,16],[10,10,10,16],[11,10,11,16],[12,10,12,16],[13,10,13,16],[46,1,46,8],[47,1,47,8],[48,1,48,8],[2,1,2,8],[3,1,3,8],[6,1,6,8],[4,2,5,3],[4,4,5,4],[4,5,5,6],[11,1,11,5],[14,1,14,2],[15,1,15,2],[33,1,33,6],[30,1,30,6],[31,1,31,6],[32,1,32,6],[0,10,0,15],[27,7,27,8],[16,1,16,5],[23,7,23,8],[24,7,24,8],[25,7,25,8],[26,7,26,8],[0,0,0,8],[12,1,12,6],[13,1,13,6],[23,1,23,6],[24,1,24,6],[4,0,5,0],[4,1,5,1],[26,1,26,6],[27,1,27,6],[9,5,9,8],[10,1,10,8],[8,1,8,8],[25,1,25,6],[21,1,21,8]]}
["Marine Protected Area (MPA) Meta-Data",null,null,null,null,null,null,null,null,null,"Answer Guide"]
["MPA Attributes"]
["COUNTRY:",null,null,null,null,null,null,null,null,null,null,null,null,null,null,null,null,null,"Previous page"]
["Location of MPA:",null,null,null,null,null,null,null,null,null,"Jurisdiction, Province, State, Country, or other location of MPA"]
["MPA Coordinates (single point):",null,null,null,null,null,null,"UTM Number:","UTM Letter:",null,"Select the appropriate coordinate system and provide the coordinates. If UTM is being used, select the UTM region 'Number' and appropriate 'Letter'",null,null,null,null,null,null,null,"Next page"]
[]
["Name of the MPA:",null,null,null,null,null,null,null,null,null,"Name of the MPA as presented in declaration documents"]
["Month and Year of MPA Establishment:",null,null,null,null,null,null,null,null,null,"DD/YYYY"]
["National Status:",null,null,null,null,null,null,null,null,null,"Highlight any national statuses and/or designations associated with the MPA"]
["Regional Status:",null,null,null,null,null,null,null,null,null,"Select the appropriate regional status. If 'Other' use the adjacent space to type"]
["International Status:",null,null,null,null,null,null,null,null,null,"Select all appropriate international statuses "]
["IUCN Category:",null,null,null,null,null,"Other:",null,"Definitions",null,"MPAs are often assigned an IUCN category. If your MPA is assigned multiple categories, select the one with the highest are and others in the 'Other' section."]
["Type of Governance:",null,null,null,null,null,null,null,"Definitions",null,"These options are based upon IUCN's broad protected area governance types with respect to who holds the decision-making and management authority and responsibility about protected areas. Dudley et al. (2008)."]
["Management Authority:",null,null,null,null,null,null,null,null,null,"Indicate the name of the management authority responsible for managing the MPA"]
["Marine Surface Area (km²):",null,null,"km²"]
["Total Surface Area (km²):",null,null,"km²"]
["Key Marine Mammal Species within the MPA"]
["Species 1:",null,null,null,null,null,null,null,null,null,"Select any key marine mammals that occur within the MPA. If none of the available species exist within the MPA, select a blank cell or leave blank. Where you have identified more than five species, you can use the 'Marine mammal Identification' sheet as an option sub-tool to record other species present in the MPA."]
["Species 2:"]
["Species 3:"]
["Species 4:"]
["Species 5:"]
["Main uses in and around the MPA",null,null,null,null,null,null,"If 'Other':"]
["Use 1:",null,null,null,null,null,null,null,null,null,"Identify the main uses the occur within and around the MPA. You should aim to identify the five altogether. Where there are more than five identified, select those deemed to be the most abundant or hold higher frequency of occurrence in comparison to other uses. If you identify a use that is not listed, select 'Other' and use the adjacent area to type."]
["Use 2:"]
["Use 3:"]
["Use 4:"]
["Use 5:"]
["Main pressures ",null,null,null,null,null,null,"If 'Other':"]
["Pressure 1:",null,null,null,null,null,null,null,null,null,"Each MPA will experience local, regional and global pressures which may be a result of both natural and anthropogenic stressors. You should try to identify five potential pressures using the Marine Mammal Management Toolkit Factsheets or through internal reports. Where more than five are identified, select those with the highest frequency or highest impact. Access the factsheets at: www.marine-mammals.info/factsheets"]
["Pressure 2:"]
["Pressure 3:"]
["Pressure 4:"]
["Pressure 5:"]
["Name the management objectives",null,null,"  "]
["Objective 1:",null,null,null,null,null,null,null,null,null,"An MPA's management plan should identify clear objectives. Ideally these should be in the SMART (specific, measurable, achievable, realistic, and time bound) format. "]
["Objective 2:"]
["Objective 3:"]
["Objective 4:"]
["Objective 5:"]
["Management Plan",null,null,"  "]
["Do you have a management plan? "]
["If yes, is it up to date?"]
["If no, do you have a document defining action priorities to achieve a better conservation state? "]
[]
["Completer Attributes"]
["Date of completing the SAT:",null,null,null,null,null,null,null,null,null,"It is important to note the date that the SAT was completed for future use."]
["Name of person completing the SAT:"]
["Affiliation:"]

{"sheet":"1. Management Framework","index":4,"n_rows":38,"n_cols":12,"rows_kept":38,"cut":false,"hidden":false,"merged":[[33,0,33,1],[32,0,32,1],[0,0,0,1],[1,0,1,1],[2,11,2,12],[4,11,4,12],[16,0,16,1],[21,0,21,1],[25,0,25,1],[4,0,4,1],[0,3,0,9]]}
["MPA Management Framework",null,null,"User Comments"]
["1. MPA management with respect to marine mammals ",null,null,"Use the space below to make comments for each question"]
["Do the stated objectives of the MPA include protection and maintenance of marine mammal biodiversity? ",null,null,null,null,null,null,null,null,null,null,"Previous page"]
["Is marine mammal management within the MPA described clearly and in detail within a management plan? "]
["Does the management plan allow for modifications to regulations in response to the following threats to marine mammals?",null,null,null,null,null,null,null,null,null,null,"Next page"]
["  - marine mammal watching"]
["  - noise management"]
["  - entanglement in fishing gear and other installations"]
["  - marine mammal by-catch (fishing)"]
["  - collision / strike"]
["  - overfishing"]
["  - Environmental Impact Assessment protocols for proposed developments or activities"]
["Are there specific conservation plans for individual marine mammal species? "]
["Does MPA management comply with national legislation protecting marine mammals? "]
["Does MPA management comply with regional and other international marine mammal agreements? "]
[]
["2. Coordination between agencies with respect to marine mammal conservation"]
["Do formal arrangements allow for cross-departmental coordination and cooperation? "]
["Is data shared across agencies to enhance the effectiveness of collaborative analysis and decision-making? "]
["Where policy conflicts between agencies occur (e.g. Port Management, MPA management), do administrative processes ensure the consideration of marine mammal conservation? "]
[]
["3. Zoning and permitting"]
["Is there a multi-use zoning plan that considers marine mammals? "]
["Does a system of permits for marine activities explicitly consider marine mammals? "]
["Do strict Environmental Impact Assessment protocols ensure the consideration of marine mammals? "]
["Where applicable, are specific monitoring/impact studies enforced for:"]
[" - oil and gas exploration / seismic surveys? "]
[" - renewal energy production (e.g. Offshore wind farms)?"]
[" - dredging? "]
[" - ports and other constructions? "]
[" - prohibited activities? "]
[]
["4. Planned responses and contingency plans for major incidents"]
["Are appropriate, detailed responses to the following incident types ready for immediate activation?"]
["- Oil spills "]
["- Ship groundings "]
["- Sunken vessel "]
["- Invasive species outbreaks"]

{"sheet":"2. Addressing Activities & Thre","index":5,"n_rows":82,"n_cols":6,"rows_kept":82,"cut":false,"hidden":false,"merged":[[2,5,2,6],[4,5,4,6],[60,0,60,1],[73,0,73,1],[0,0,0,1],[53,0,53,1],[1,0,1,1],[15,0,15,1],[30,0,30,1],[38,0,38,1],[46,0,46,1]]}
["Addressing Activities & Threats",null,null,"User Comments"]
["5. Whale, dolphin and sirenia watching",null,null,"Use the space below to make comments for each question"]
["Is marine mammal watching regulated by national or state government laws or regulations? ",null,null,null,null,"Previous page"]
["Are there specific guidelines for marine mammal watching (rules of approach, types of vessels, noise etc) within the MPA? "]
["Are types of vessels and spotting aircraft (and drones) regulated within the MPA?","Yes",null,null,null,"Next page"]
["Are approach-distances, altitudes etc. of aircraft and drones regulated within the MPA? "]
["Do guidelines forbid touching, feeding, use of scuba, and loud noise?"]
["Are observers on marine mammal watching vessels required at all times? "]
["Are trained and empowered naturalist guides required on every trip? "]
["Are licence numbers restricted based on marine mammal conservation needs?"]
["Is there periodic assessment of compliance of the marine mammal industry with management goals and legislation? "]
["Is there enforcement of maximum visitation rules through Automatic Identification System (vessel tracking)?"]
["Do marine mammal watching operators within the MPA collectively (through an association) promote sustainable actions? "]
["Are marine mammal watching operators required to obtain training and certification? "]
[]
["6. Noise management"]
["Are strict underwater noise limits (based on scientific research) invoked within the permit process?"]
["Are seismic surveys (for research and economic activities) prohibited during important times for marine mammals? "]
["Is there clear legislative responsibility for minimising the impacts of underwater noise?"]
["Are important marine mammal areas subject to tighter controls on underwater noise?"]
["Are there season-specific noise restrictions or prohibition in place?"]
["Are specific minimum mitigation requirements to be met in the case of certain developments outlined in legislation or regulation? "]
["Are specified techniques (i.e. 'soft start') prescribed to mitigate the effects of construction/development activities? "]
["Are noise limits in place for specific types of construction, where necessary? E.g. Pile-driving for offshore wind farms "]
["Are allowable limits of ambient noise for fixed, mobile and vibration sources in place?"]
["Are marine mammal observers or acoustic monitors required during construction or when seismic surveys are undertaken? "]
["Is the use of sonar (e.g. during military exercises) regulated in certain seasons? "]
["Does the MPA have a strategy  to reduce the impact of commercial vessel noise on marine mammals (i.e. shipping lanes, slow speed zones, noise reduction)? "]
["Is passive monitoring of cetaceans and underwater noise undertaken within the MPA? "]
[]
["7. Entanglement in fishing gear and other installations"]
["Are non-fishing activities with the potential to cause marine mammal entanglement (offshore energy, aquaculture etc) prohibited in key marine mammal areas within the MPA? "]
["Are fishers and other marine users subject to communication and awareness programmes regarding interactions with marine mammals? "]
["Is immediate reporting of marine mammal entanglements compulsory for fishers or other marine operators? "]
["Are marine mammal entanglement numbers, locations, species and gear types recorded in a central database? "]
["Are formal, best-practice strategies in place for responses to entanglements? "]
["Is 'ropeless trap' technology used and/or encouraged? "]
[]
["8. Marine Mammal By-catch (fishing)"]
[" Is fishing banned or restricted (effort) in key marine mammal zones areas within the MPA? "]
["Is net fishing banned within the MPA? "]
[" Is net fishing regulated within key zones in the MPA? "]
["Are seasonal fishing restrictions in place to avoid the risk of cetacean by-catch? "]
["Are drift-nets banned or restricted within the MPA? "]
["Is gillnet use restricted or prohibited in certain areas and/or at certain times? "]
["Are pingers or acoustic alarms required in the net or trawl fisheries? "]
["Are other technological strategies required (by regulation or legislation) in order to reduce marine mammal by-catch?"]
[" - Light trawls replacing gillnets "]
[" - stiffened and acoustically reflective gillnets "]
[" - exclusion grids on trawls "]
[" - excluding devices on stownets"]
[" - longline modifications "]
[" - gear modifications to pot and trap fisheries to reduce marine mammal entanglement "]
["Are artisanal fishing practices the only, if any, permitted fishery activity within the MPA? if ‘Yes’, select \"Not Applicable\" for the following questions. "]
["Are by-catch records (including species, locations and gear-types) recorded in a central database? "]
["Is research into cetacean by-catch risk and mitigation being conducted? "]
["Are stakeholder (fishing industry) outreach programs encouraging behavioural and technological mitigation strategies?"]
["Are training programmes (to release entangled animals where possible) available to commercial fishermen? "]
["Are observer monitoring programs required on commercial fishing vessels? "]
[]
["9. Marine mammal collision / strike"]
["Have areas of high vessel traffic been identified and mapped? "]
["Within areas of high vessel use, have the distributions and abundances of marine mammals been quantified in space and time?"]
["Have risk assessments been undertaken for species based on known distribution, critical habitat, vulnerability to vessel strike and vessel traffic? "]
["Is reporting of known vessel strikes facilitated (e.g. through online reporting)? "]
["Are vessel strike records collected and centrally held for analysis?"]
["Are vessel strikes reported to the International Whaling Commission (https://iwc.int/home) for their database? "]
["Where necropsies on stranded marine mammals suggest boat strike as a cause of death, is hindcasting used to estimate the location of the collision? "]
["Are large vessels (20 m length) restricted to below 10 knots within the MPA? "]
["Are speed limits below 10 knots in force within marine mammal critical habitat areas? "]
["Are seasonal or permanent bans on vessels entering particularly sensitive areas for marine mammals in place? "]
["Are vessels routed in a manner (i.e. Traffic Separation Scheme) designed to minimise the risk of collision with marine mammals? "]
[]
["10. Marine mammal strandings (by MPA management or stranding network etc.)"]
["Does the MPA include coastal zone (s) (beaches, etc.)? "]
["Is there a system which gives the public the ability to report strandings in an efficient and rapid manner? "]
["Is there the capacity for an emergency response to attend to live strandings, transport live animals, apply medical treatment, and if possible refloat the animal? "]
["Is there capacity to perform necroscopies (and take samples) by trained personnel from dead strandings in order to analyse mortality? "]
["Is there capacity to identify population-wide health problems (i.e. toxic waste), with possible remediation actions? "]
["Is data held in a central database that allows locations, causes of injury, illness or death, and species to be aggregated and therefore analysed? "]
["Is there clear and accessible public communication and education regarding the reporting of strandings? "]
["Is there clear and accessible public communication regarding stranding data in order to increase public awareness of cetaceans and the threats they face? "]

{"sheet":"3. Research & Monitoring","index":6,"n_rows":74,"n_cols":6,"rows_kept":74,"cut":false,"hidden":false,"merged":[[68,0,68,1],[2,5,2,6],[4,5,4,6],[0,0,0,1],[1,0,1,1],[6,0,6,1],[8,0,8,1],[24,0,24,1],[34,0,34,1],[40,0,40,1],[57,0,57,1],[23,0,23,1],[46,0,46,1],[51,0,51,1],[55,0,55,1]]}
["Research and monitoring",null,null,"User Comments"]
["11. Baseline Knowledge - Ecology of Marine Mammal, their Habitats and their threats",null,null,"Use the space below to make comments for each question"]
["Are maps of marine mammal habitats and other relevant natural resources available? ",null,null,null,null,"Previous page"]
["Knowledge of the ecological status of marine mammals within the MPA? "]
["Have detailed analyses of specific local threats to marine mammals, along with their causes, been conducted? ",null,null,null,null,"Next page"]
[]
["12. Marine mammal ecological Monitoring - protocols and techniques"]
["Are standardised, best-practice monitoring protocols in place?"]
["Which of the following monitoring techniques are used? "]
[" - photo ID"]
[" - transect counts"]
[" - passive acoustic monitoring"]
[" - biopsies for genetic analyses"]
[" - GPS tracking"]
[" - radio-tracking"]
[" - acoustic tracking"]
[" - aerial surveys from manned or unmanned aircraft"]
[" - citizen science"]
[" - data collection from tourism operators"]
[" - stranding and by-catch data"]
["Does the MPA management or its collaborators have the technical capacity to fully analyse collected monitoring data?"]
["Is existing marine research and monitoring data maintained in the long term?"]
[]
["13. Measured Ecological Variables (by MPA management or partner organisations)"]
["Which of the following ecological variables concerning marine mammals are monitored?"]
[" - diversity"]
[" - seasonal movements"]
[" - species distributions"]
[" - habitat usage"]
[" - population groupings"]
[" - abundance of each species"]
[" - connectivity between populations"]
[" - behaviour"]
[" - migration characteristics"]
["Are the following general ecological health indicators of the ecosystems within the MPA monitored?"]
["               - fish stocks "]
["               - abundance of macroalgal species "]
["               - reef health "]
["               - seagrass  abundance "]
["               - plankton abundance "]
["Physical parameters over time and space "]
["               - sea temperatures"]
["               - ocean acidity (pH)"]
["               - salinity"]
["               - other relevant physical or chemical variables  (i.e. current speed)"]
[]
["14. Frequency of Marine Mammal Monitoring (by MPA management or partner organisations)"]
["For migratory species: "]
["For resident species: "]
["Physical parameters: "]
[]
["15. Data sharing concerning marine mammals"]
["Is monitoring and reporting data (raw data and metadata) readily shared between agencies and with researchers?","Partially"]
["Is monitoring data and reporting publicly accessible (online)? "]
[]
["16. Socio-economic monitoring (by the MPA management or partner organisations)"]
["Has the overall economic value of marine mammals in the MPA been studied?"]
["What of the following socio-economic variables are monitored?"]
[" - commercial ship traffic (numbers, routes, sizes, speed, noise, vessel strikes)"]
[" - commercial fishing data (numbers of boats, locations, dates, types of fishery, types of devices used, by-catch.)"]
[" - commercial catch data (species, number/weight, date)"]
[" - whale watching (includes dolphins) data (number of boats, number of passengers, duration of season)"]
[" - economic value of whale watching (nationally, to region, local communities, flow-on effects)."]
[" - recreational fishing and other activities (numbers, number of days, locations)"]
[" - marine litter  (rubbish types and amounts, ghost nets, other abandoned fishing gear) through space and time"]
[" - water quality (nutrient levels, other potential pollutants, salinity) through space and time"]
[" - scientific research (number of projects, monetary investment in research, research specific to marine mammals)"]
[]
["17. Marine Mammal Research / scientific permits / agreements"]
["Have marine mammal research priorities within the MPA been identified?"]
["Are marine mammal research activities and partnerships outlined in publicly-available documents?"]
["Is an effective scientific and social marine mammal research permitting system in place?"]
["Is marine mammal research funding, facilitation and collaboration effective and prioritised and transparent?"]
["Does the MPA have MoUs or partnerships with other organisations related to marine mammal research (other MPAs, universities, research organisations etc)?"]

{"sheet":"4. Outreach & Engagement","index":7,"n_rows":35,"n_cols":6,"rows_kept":35,"cut":false,"hidden":false,"merged":[[19,0,19,1],[2,0,2,1],[8,0,8,1],[0,0,0,1],[1,0,1,1],[18,0,18,1],[3,5,3,6],[5,5,5,6]]}
["Outreach and engagement",null,null,"User Comments"]
["18. Involvement of stakeholders and other partners in marine mammal management",null,null,"Use the space below to make comments for each question"]
["Is there policy and management collaboration between MPA management and the following non-commercial stakeholders (where applicable)?"]
["  - Local communities ",null,null,null,null,"Previous page"]
["  - Traditional owners "]
["  - Artisanal fishers ",null,null,null,null,"Next page"]
["  - Recreational fishers "]
["  - Non-government conservation organisations"]
["Is there policy and management collaboration between MPA management and the following commercial stakeholders?"]
["  - Tourism operators "]
["  - Commercial fishers "]
["  - Mineral resource developers  "]
["  - Shipping operators or organisations "]
["  - Aquaculture industry"]
["  - Renewable energy industry "]
["  - Defence "]
["Is the MPA incorporated into marine mammal regional agreements, networks or action plans?"]
[]
["19. Education / Communication / Awareness raising"]
["Are marine mammal education and awareness programs directed at the following user groups? "]
["  - Local communities"]
["  - Traditional owners"]
["  - Artisanal fishers"]
["  - Recreational fishers"]
["  - Non-government conservation organisations"]
["  - Tourism operators"]
["  - Commercial fishers"]
["  - Mineral resource developers"]
["  - Shipping operators or organisations"]
["  - Aquaculture industry"]
["  - Renewable energy industry"]
["  - Defence"]
["Are marine mammal education and awareness programs aimed at government ministries, personnel and/or policymakers? "]
["Are all relevant marine mammal policy and other documents readily available? "]
["Is there a programme of participatory / citizen science with regard to marine mammals?"]

{"sheet":"5. Management Effectiveness","index":8,"n_rows":30,"n_cols":6,"rows_kept":30,"cut":false,"hidden":false,"merged":[[20,0,20,1],[12,0,12,1],[19,0,19,1],[5,5,5,6],[3,5,3,6],[0,0,0,1],[1,0,1,1],[8,0,8,1]]}
["Management effectiveness",null,null,"User Comments"]
["20. Compliance and Enforcement",null,null,"Use the space below to make comments for each question"]
["Are specific programmes in place to encourage compliance with regards to marine mammals by MPA management or partner? (e.g. education, enforcement, penalties etc.)"]
["Is education and information promoting compliance readily available to marine users? ",null,null,null,null,"Previous page"]
["Is coordination between the MPA management and other enforcement agencies (e.g. Coastguard, National Parks) effective? "]
["Is patrol capacity (vessels, staffing, aerial surveillance, vessel tracking) sufficient to enforce MPA regulations? ",null,null,null,null,"Dashboard"]
["Are penalties and their imposition sufficient to discourage actions and behaviours likely to harm marine mammals? "]
[]
["21. Reporting / Reviewing management effectiveness"]
["Are performance measures for all marine mammal species conservation plans outlined? "]
["Is there a schedule of periodic update reports incorporating marine mammal ecological indicators? "]
[]
["22. Overall management capacity across all operations affecting marine mammal conservation "]
["Are staffing levels sufficient for the management for marine mammals in the MPA?"]
["Are the skills of staff and collaborators sufficient for the protection of marine mammals within the MPA? "]
["Is office and laboratory space sufficient for the protection of marine mammals within the MPA? "]
["Is IT hardware and software sufficient for the protection of marine mammals within the MPA?"]
["Is there a strategy in place to improving future operational capacity? "]
[]
["23. Resource Allocation to Research, Monitoring and Enforcement"]
["In order to monitor the cetaceans and their threats within the MPA, are there sufficient: "]
[" - marine vessels for research and enforcement? "]
[" - hydrophones for monitoring cetaceans and other underwater noise? "]
[" - marine mammal tagging materials? "]
[" - drones and/or access to light aircraft? "]
[" - capacity for MPA managers or another authority to monitor shipping traffic using the AIS monitoring system? "]
[" - other vessel monitoring equipment (e.g. Radar)?"]
[" - diving equipment? "]
[" - photography / videography / range-finding binoculars (IR)? "]
[" - necropsy, veterinary and marine mammal 'rescue' equipment?"]

{"sheet":"Marine Mammal Identification","index":9,"n_rows":45,"n_cols":7,"rows_kept":45,"cut":false,"hidden":false,"merged":[[0,0,0,6],[42,0,44,0],[42,1,44,1],[2,1,20,1],[2,0,31,0],[22,1,23,1],[27,1,31,1],[33,0,40,0],[35,1,40,1]]}
["Marine Mammal MPA Presence Indicator (Optional)"]
["(Micro-) order","Family","Species name","Present in the MPA","French name","English name","Spanish name"]
["Odontoceti","Delphinidae","Delphinus capensis",null,"Dauphin commun à bec large","Long-beaked Common Dolphin","Delfin Comun a Pico Largo"]
[null,null,"Delphinus delphis*",null,"Dauphin commun","Short-beaked Common Dolphin","Delfin Comun"]
[null,null,"Feresa attenuata",null,"Orque naine ou pygmée","Pygmy Killer Whale","Orca Pigmeo"]
[null,null,"Globicephala macrorhynchus",null,"Globicéphal tropical","Short-finned Pilot Whale","Caldron Negro"]
[null,null,"Globicephala melas*",null,"Dauphin pilote, Globicéphale commun ou noir","Long-finned Pilot Whale","Ballena Piloto"]
[null,null,"Grampus griseus",null,"Dauphin de Risso","Risso's Dolphin","Delfin de Risso"]
[null,null,"Lagenodelphis hosei",null,"Dauphin de Fraser","Fraser's Dolphin","Delfin de Borneo"]
[null,null,"Orcinus orca",null,"Orque","Killer Whale","Espadarte, Orca"]
[null,null,"Peponocephala electra",null,"Dauphin d'Electre ou Péponocéphale","Melon-headed Whale","Calderon Pequeno, Electra"]
[null,null,"Pseudorca crassidens",null,"Pseudorque","False Killer Whale","Orca Falsa"]
[null,null,"Sotalia fluviatilis",null,"Tucuxi","Tucuxi","Tucuxi"]
[null,null,"Sotalia guianensis",null,"Dauphin de Guyane, Sotalie","Guiana dolphin","Bufeo Blanco, Costero"]
[null,null,"Stenella attenuata",null,"Dauphin tacheté pantropical","Pantropical Spotted Dolphin","Delfin Manchado, Delfin Pintado"]
[null,null,"Stenella clymene",null,"Dauphin Clymène","Clymene Dolphin","Delfin Clymene"]
[null,null,"Stenella coeruleoalba",null,"Dauphin rayé","Striped Dolphin","Delfin Blanco y Azul"]
[null,null,"Stenella frontalis",null,"Dauphin tacheté de l'Atlantique","Atlantic Spotted Dolphin","Delfin Manchado Del Atlantico"]
[null,null,"Stenella longirostris",null,"Dauphin à long bec","Spinner Dolphin","Delfin Tornillon"]
[null,null,"Steno bredanensis",null,"Steno rostré","Rough-toothed Dolphin","Delfin de Pico Largo"]
[null,null,"Tursiops truncatus",null,"Grand Dauphin","Common Bottlenose Dolphin","Delfin Mular"]
[]
[null,"Kogiidae","Kogia breviceps",null,"Cachalot pygmé","Pygmy Sperm Whale","Cachalote Pigmeo"]
[null,null,"Kogia sima",null,"Cachalot nain","Dwarf Sperm Whale","Cachalote Enano"]
[]
[null,"Physeteridae","Physeter macrocephalus",null,"Cachalot","Sperm Whale","Cachalote, Ballena Esperma"]
[]
[null,"Ziphiidae","Mesoplodon bidens",null,"Baleine à bec de Sowerby","Sowerby's beaked whale","Ballena de Pico de Sowerby"]
[null,null,"Mesoplodon densirostris",null,"Baleine à bec de Blainville","Blainville's Beaked Whale","Ballena De Pico De Blainville"]
[null,null,"Mesoplodon europaeus",null,"Baleine à bec de Gervais","Gervais' Beaked Whale","Ballena De Pico De Gervais"]
[null,null,"Mesoplodon mirus",null,"Baleine à bec de True","True's Beaked Whale","Ballena De Pico De True"]
[null,null,"Ziphius cavirostris",null,"Baleine à bec de Cuvier","Cuvier's Beaked Whale","Ballena De Cuvier"]
[]
["Mysticeti","Balaenidae","Eubalaena glacialis",null,"Baleine franche de l'Atlantique Nord","North Atlantic right whale","Ballena Franca Del Norte"]
[]
[null,"Balaenopteridae","Balaenoptera acutorostrata",null,"Petit rorqual","Common Minke Whale","Ballena De Minke Comun"]
[null,null,"Balaenoptera borealis",null,"Rorqual de Rudolphi","Sei Whale","Ballena Sei"]
[null,null,"Balaenoptera edeni",null,"Rorqual de Bryde","Bryde's Whale","Ballena De Bryde"]
[null,null,"Balaenoptera musculus",null,"Baleine bleue","Blue whale","Ballena Azul"]
[null,null,"Balaenoptera physalus",null,"Rorqual commun","Fin Whale","Ballena Aleta"]
[null,null,"Megaptera novaeangliae",null,"Rorqual à bosse","Humpback Whale","Ballena Jorobada"]
[]
["Sirenia","Trichechidae","Trichechus manatus",null,"Lamantin des Caraïbes","Caribbean Manatee","Manati del Caribe"]
[null,null,"Trichechus manatus latirostris",null,"Lamantin de Floride (d'Amérique du Nord)","Florida Manatee","Manati de Florida"]
[null,null,"Trichechus manatus manatus",null,"Lamantin des Antilles","West Indian Manatee","Manati Antilliano"]

{"sheet":"Definitions & Help","index":10,"n_rows":15,"n_cols":3,"rows_kept":15,"cut":false,"hidden":false,"merged":[[14,0,14,1],[0,0,0,2],[10,0,10,2],[11,0,11,1],[12,0,12,1],[13,0,13,1]]}
["IUCN MPA Categories"]
["Code","Name","Definition "]
["Ia","Strict Nature Reserve","Category Ia are strictly protected areas set aside to protect biodiversity and also possibly geological/geomorphical features, where human visitation, use and impacts are strictly controlled and limited to ensure protection of the conservation values. Such protected areas can serve as indispensable reference areas for scientific research and monitoring"]
["Ib","Wilderness Area","Category Ib protected areas are usually large unmodified or slightly modified areas, retaining their natural character and influence without permanent or significant human habitation, which are protected and managed so as to preserve their natural condition."]
["II","National Park","Category II protected areas are large natural or near natural areas set aside to protect large-scale ecological processes, along with the complement of species and ecosystems characteristic of the area, which also provide a foundation for environmentally and culturally compatible, spiritual, scientific, educational, recreational, and visitor opportunities."]
["II","Natural Monument or Feature","Category III protected areas are set aside to protect a specific natural monument, which can be a landform, sea mount, submarine cavern, geological feature such as a cave or even a living feature such as an ancient grove. They are generally quite small protected areas and often have high visitor value."]
["IV","Habitat/Species Management Area","Category IV protected areas aim to protect particular species or habitats and management reflects this priority. Many Category IV protected areas will need regular, active interventions to address the requirements of particular species or to maintain habitats, but this is not a requirement of the category."]
["V:","Protected Landscape/Seascape","A protected area where the interaction of people and nature over time has produced an area of distinct character with significant, ecological, biological, cultural and scenic value: and where safeguarding the integrity of this interaction is vital to protecting and sustaining the area and its associated nature conservation and other values"]
["VI","Protect Area with Sustainable use of Natural Resources","Category VI protected areas conserve ecosystems and habitats together with associated cultural values and traditional natural resource management systems. They are generally large, with most of the area in a natural condition, where a proportion is under sustainable natural resource management and where low-level non-industrial use of natural resources compatible with nature conservation is seen as one of the main aims of the area"]
[]
["IUCN Types of Governance (Dudley 2008)"]
["Governance by government",null,"A government body (such as a Ministry or Park Agency reporting directly to the government) holds the authority, responsibility and accountability for managing the protected area, determines its conservation objectives (such as the ones that distinguish the IUCN categories), develops and enforces its management plan and often also owns the protected area’s land, water and related resources. Sub-national and municipal government bodies can also be in charge of the above and/ or own land and resources in protected areas. In some cases, the government retains the control of a protected area – in other words decides the objectives of managing the area – but delegates the planning and/or daily management tasks to a para-statal organization, NGO, private operator or community. Under a state’s legal framework and governance there may or may not be a legal obligation to inform or consult stakeholders prior to setting up protected areas and making or enforcing management decisions. Participatory approaches are however increasingly common and generally desirable. Accountability measures also vary according to the country."]
["Co-management ",null,"Complex institutional mechanisms and processes are employed to share management authority and responsibility among a plurality of (formally and informally) entitled governmental and non-governmental actors. Shared governance, sometimes also referred to as co-management, comes in many forms. In “collaborative” management, decision-making authority and responsibility rest with one agency but the agency is required – by law or policy – to inform or consult other stakeholders. Participation in collaborative management can be strengthened by assigning to multi-stakeholder bodies the responsibility of developing technical proposals for protected area regulation and management, to be submitted ultimately to a decision-making authority for approval. In “joint” management, various actors sit on a management body with decision-making authority and responsibility. Decisions may or may not require consensus. In any of these cases, once decisions about management are taken, their implementation needs to be delegated to agreed bodies or individuals. One particular form of shared governance relates to transboundary protected areas, which involve at least two or more governments and possibly other local actors."]
["Private governance",null,"Private governance comprises protected areas under individual, cooperative, NGO or corporate control and/or ownership, and managed under not-for-profit or for-profit schemes. Typical examples are areas acquired by NGOs explicitly for conservation. Many individual landowners also pursue conservation out of respect for the land and a desire to maintain its aesthetic and ecological values. Incentive schemes, such as revenues from ecotourism and hunting or the reduction of levies and taxes, often support this governance type. In all these cases, the authority for managing the protected land and resources rests with the landowners, who determine the conservation objective, develop and enforce management plans and remain in charge of decisions, subject to applicable legislation. In cases where there is no official recognition by the government, the accountability of private protected areas to society may be limited. Some accountability, for example in terms of long-term security, can be negotiated with the government in exchange for specific incentives (as in the case of Easements or Land Trusts)."]
["Governance by indigenous peoples and local communities",null,"This type includes two main subsets: (1) indigenous peoples’ areas and territories established and run by indigenous peoples and (2) community conserved areas established and run by local communities. The subsets, which may not be neatly separated, apply to both sedentary and mobile peoples and communities. IUCN defines this governance type as: protected areas where the management authority and responsibility rest with indigenous peoples and or local communities through various forms of customary or legal, formal or informal, institutions and rules. These can be relatively complex. For instance, land and or sea resources may be collectively owned and managed while other resources may be managed individually or on a clan basis. Different indigenous peoples or communities may be in charge of the same area at different times, or of different resources within the same area. Rules generally intertwine with cultural and spiritual values. The customary rules and organizations managing natural resources often possess no statutory legal recognition or sanctioning power. In other cases, however, indigenous peoples and or local communities are fully recognised as the legitimate authority in charge of state-listed protected areas or have legal title to the land, water or resources. Whatever the structure, the governance arrangements require that the area under the control of indigenous peoples and or local communities has identifiable institutions and regulations that are responsible for achieving the protected area objectives"]

{"sheet":"Scorecard Counts","index":11,"n_rows":264,"n_cols":16,"rows_kept":264,"cut":false,"hidden":false,"merged":[[118,13,119,15],[193,13,194,15],[229,13,230,15],[260,13,261,15],[240,6,240,9],[244,6,244,9],[251,6,251,9],[263,6,263,9],[176,6,176,9],[189,6,189,9],[196,6,196,9],[214,6,214,9],[232,6,232,9],[111,6,111,9],[127,6,127,9],[144,6,144,9],[167,6,167,9],[172,6,172,9],[121,6,121,9],[35,13,36,15],[53,6,53,9],[68,6,68,9],[76,6,76,9],[98,6,98,9],[20,6,20,9],[31,6,31,9],[38,6,38,9],[0,6,0,9],[0,2,0,5],[15,6,15,9]]}
[{"$f":"'1. Management Framework'!A1","v":"MPA Management Framework"},"Answer","Answers",null,null,null,"Score Grades",null,null,null,"Awarded Score","Max Score","% of Max Score"]
[{"$f":"'1. Management Framework'!A2","v":"1. MPA management with respect to marine mammals "}]
[{"$f":"'1. Management Framework'!A3","v":"Do the stated objectives of the MPA include protection and maintenance of marine mammal biodiversity? "},{"$f":"'1. Management Framework'!B3","v":0},"Yes","No",null,null,2,0,null,null,{"$f":"INDEX(G3:J3,MATCH(B3,C3:F3,0))","v":{"$error":"#N/A"}},{"$f":"G3","v":2}]
[{"$f":"'1. Management Framework'!A4","v":"Is marine mammal management within the MPA described clearly and in detail within a management plan? "},{"$f":"'1. Management Framework'!B4","v":0},"Yes","No",null,null,2,0,null,null,{"$f":"INDEX(G4:J4,MATCH(B4,C4:F4,0))","v":{"$error":"#N/A"}},{"$f":"G4","v":2}]
[{"$f":"'1. Management Framework'!A5","v":"Does the management plan allow for modifications to regulations in response to the following threats to marine mammals?"}]
[{"$f":"'1. Management Framework'!A6","v":"  - marine mammal watching"},{"$f":"'1. Management Framework'!B6","v":0},"Yes","No","Not applicable",null,1,0,"N/A",null,{"$f":"INDEX(G6:J6,MATCH(B6,C6:F6,0))","v":{"$error":"#N/A"}},{"$f":"IF(ISNUMBER(SEARCH(\"N/A\",K6)),\"N/A\",G6)","v":1}]
[{"$f":"'1. Management Framework'!A7","v":"  - noise management"},{"$f":"'1. Management Framework'!B7","v":0},"Yes","No","Not applicable",null,1,0,"N/A",null,{"$error":"#N/A"},{"$f":"IF(ISNUMBER(SEARCH(\"N/A\",K7)),\"N/A\",G7)","v":1}]
[{"$f":"'1. Management Framework'!A8","v":"  - entanglement in fishing gear and other installations"},{"$f":"'1. Management Framework'!B8","v":0},"Yes","No","Not applicable",null,1,0,"N/A",null,{"$error":"#N/A"},{"$f":"IF(ISNUMBER(SEARCH(\"N/A\",K8)),\"N/A\",G8)","v":1}]
[{"$f":"'1. Management Framework'!A9","v":"  - marine mammal by-catch (fishing)"},{"$f":"'1. Management Framework'!B9","v":0},"Yes","No","Not applicable",null,1,0,"N/A",null,{"$error":"#N/A"},1]
[{"$f":"'1. Management Framework'!A10","v":"  - collision / strike"},{"$f":"'1. Management Framework'!B10","v":0},"Yes","No","Not applicable",null,1,0,"N/A",null,{"$error":"#N/A"},1]
[{"$f":"'1. Management Framework'!A11","v":"  - overfishing"},{"$f":"'1. Management Framework'!B11","v":0},"Yes","No","Not applicable",null,1,0,"N/A",null,{"$error":"#N/A"},1]
[{"$f":"'1. Management Framework'!A12","v":"  - Environmental Impact Assessment protocols for proposed developments or activities"},{"$f":"'1. Management Framework'!B12","v":0},"Yes","No",null,null,1,0,null,null,{"$error":"#N/A"},1]
[{"$f":"'1. Management Framework'!A13","v":"Are there specific conservation plans for individual marine mammal species? "},{"$f":"'1. Management Framework'!B13","v":0},"Yes: All species","Yes: Some species","No",null,2,1,0,null,{"$error":"#N/A"},{"$f":"G13","v":2}]
[{"$f":"'1. Management Framework'!A14","v":"Does MPA management comply with national legislation protecting marine mammals? "},{"$f":"'1. Management Framework'!B14","v":0},"Yes","No",null,null,2,0,null,null,{"$error":"#N/A"},{"$f":"G14","v":2}]
[{"$f":"'1. Management Framework'!A15","v":"Does MPA management comply with regional and other international marine mammal agreements? "},{"$f":"'1. Management Framework'!B15","v":0},"Yes","No",null,null,2,0,null,null,{"$error":"#N/A"},2]
[null,null,null,null,null,null,"Total Score:",null,null,null,{"$f":"SUM(K3:K15)","v":{"$error":"#N/A"}},{"$f":"SUM(L3:L15)","v":17},{"$f":"(K16/L16)*100","v":{"$error":"#N/A"}}]
[{"$f":"'1. Management Framework'!A17","v":"2. Coordination between agencies with respect to marine mammal conservation"},{"$f":"'1. Management Framework'!B17","v":0}]
[{"$f":"'1. Management Framework'!A18","v":"Do formal arrangements allow for cross-departmental coordination and cooperation? "},{"$f":"'1. Management Framework'!B18","v":0},"Yes","No",null,null,2,0,null,null,{"$error":"#N/A"},{"$f":"G18","v":2}]
[{"$f":"'1. Management Framework'!A19","v":"Is data shared across agencies to enhance the effectiveness of collaborative analysis and decision-making? "},{"$f":"'1. Management Framework'!B19","v":0},"Yes","No",null,null,2,0,null,null,{"$error":"#N/A"},2]
[{"$f":"'1. Management Framework'!A20","v":"Where policy conflicts between agencies occur (e.g. Port Management, MPA management), do administrative processes ensure the consideration of marine mammal conservation? "},{"$f":"'1. Management Framework'!B20","v":0},"Yes","No","Not applicable",null,2,0,"N/A",null,{"$error":"#N/A"},{"$f":"IF(ISNUMBER(SEARCH(\"N/A\",K20)),\"N/A\",G20)","v":2}]
[{"$f":"'1. Management Framework'!A21","v":0},{"$f":"'1. Management Framework'!B21","v":0},null,null,null,null,"Total Score:",null,null,null,{"$f":"SUM(K18:K20)","v":{"$error":"#N/A"}},{"$f":"SUM(L18:L20)","v":6},{"$f":"(K21/L21)*100","v":{"$error":"#N/A"}}]
[{"$f":"'1. Management Framework'!A22","v":"3. Zoning and permitting"},{"$f":"'1. Management Framework'!B22","v":0}]
[{"$f":"'1. Management Framework'!A23","v":"Is there a multi-use zoning plan that considers marine mammals? "},{"$f":"'1. Management Framework'!B23","v":0},"Yes: The entire MPA","Yes: In development","No",null,2,1,0,null,{"$error":"#N/A"},{"$f":"G23","v":2}]
[{"$f":"'1. Management Framework'!A24","v":"Does a system of permits for marine activities explicitly consider marine mammals? "},{"$f":"'1. Management Framework'!B24","v":0},"Yes: The entire MPA","Yes: In development","No",null,2,1,0,null,{"$error":"#N/A"},{"$f":"G24","v":2}]
[{"$f":"'1. Management Framework'!A25","v":"Do strict Environmental Impact Assessment protocols ensure the consideration of marine mammals? "},{"$f":"'1. Management Framework'!B25","v":0},"Yes","No",null,null,2,0,null,null,{"$error":"#N/A"},2]
[{"$f":"'1. Management Framework'!A26","v":"Where applicable, are specific monitoring/impact studies enforced for:"},{"$f":"'1. Management Framework'!B26","v":0}]
[{"$f":"'1. Management Framework'!A27","v":" - oil and gas exploration / seismic surveys? "},{"$f":"'1. Management Framework'!B27","v":0},"Yes","No","Not applicable",null,1,0,"N/A",null,{"$error":"#N/A"},{"$f":"IF(ISNUMBER(SEARCH(\"N/A\",K27)),\"N/A\",G27)","v":1}]
[{"$f":"'1. Management Framework'!A28","v":" - renewal energy production (e.g. Offshore wind farms)?"},{"$f":"'1. Management Framework'!B28","v":0},"Yes","No","Not applicable",null,1,0,"N/A",null,{"$error":"#N/A"},{"$f":"IF(ISNUMBER(SEARCH(\"N/A\",K28)),\"N/A\",G28)","v":1}]
[{"$f":"'1. Management Framework'!A29","v":" - dredging? "},{"$f":"'1. Management Framework'!B29","v":0},"Yes","No","Not applicable",null,1,0,"N/A",null,{"$error":"#N/A"},1]
[{"$f":"'1. Management Framework'!A30","v":" - ports and other constructions? "},{"$f":"'1. Management Framework'!B30","v":0},"Yes","No","Not applicable",null,1,0,"N/A",null,{"$error":"#N/A"},1]
[{"$f":"'1. Management Framework'!A31","v":" - prohibited activities? "},{"$f":"'1. Management Framework'!B31","v":0},"Yes","No","Not applicable",null,1,0,"N/A",null,{"$error":"#N/A"},1]
[{"$f":"'1. Management Framework'!A32","v":0},{"$f":"'1. Management Framework'!B32","v":0},null,null,null,null,"Total Score:",null,null,null,{"$f":"SUM(K23:K31)","v":{"$error":"#N/A"}},{"$f":"SUM(L23:L31)","v":11},{"$f":"(K32/L32)*100","v":{"$error":"#N/A"}}]
[{"$f":"'1. Management Framework'!A33","v":"4. Planned responses and contingency plans for major incidents"},{"$f":"'1. Management Framework'!B33","v":0}]
[{"$f":"'1. Management Framework'!A34","v":"Are appropriate, detailed responses to the following incident types ready for immediate activation?"},{"$f":"'1. Management Framework'!B34","v":0}]
[{"$f":"'1. Management Framework'!A35","v":"- Oil spills "},{"$f":"'1. Management Framework'!B35","v":0},"Yes","No",null,null,2,0,null,null,{"$error":"#N/A"},{"$f":"G35","v":2}]
[{"$f":"'1. Management Framework'!A36","v":"- Ship groundings "},{"$f":"'1. Management Framework'!B36","v":0},"Yes","No",null,null,2,0,null,null,{"$error":"#N/A"},{"$f":"G36","v":2},null,"MPA Management Framework Score"]
[{"$f":"'1. Management Framework'!A37","v":"- Sunken vessel "},{"$f":"'1. Management Framework'!B37","v":0},"Yes","No",null,null,2,0,null,null,{"$error":"#N/A"},2]
[{"$f":"'1. Management Framework'!A38","v":"- Invasive species outbreaks"},{"$f":"'1. Management Framework'!B38","v":0},"Yes","No",null,null,2,0,null,null,{"$error":"#N/A"},{"$f":"G38","v":2},null,"Max Score","Awarded Score","%"]
[{"$f":"'1. Management Framework'!A39","v":0},{"$f":"'1. Management Framework'!B39","v":0},null,null,null,null,"Total Score:",null,null,null,{"$f":"SUM(K35:K38)","v":{"$error":"#N/A"}},{"$f":"SUM(L35:L38)","v":8},{"$f":"(K39/L39)*100","v":{"$error":"#N/A"}},{"$f":"SUM(L39,L32,L21,L16)","v":42},{"$f":"SUM(K39,K32,K21,K16)","v":{"$error":"#N/A"}},{"$f":"(O39/N39)*100","v":{"$error":"#N/A"}}]
[{"$f":"'2. Addressing Activities & Thre'!A1","v":"Addressing Activities & Threats"},{"$f":"'2. Addressing Activities & Thre'!B1","v":0}]
[{"$f":"'2. Addressing Activities & Thre'!A2","v":"5. Whale, dolphin and sirenia watching"},{"$f":"'2. Addressing Activities & Thre'!B2","v":0}]
[{"$f":"'2. Addressing Activities & Thre'!A3","v":"Is marine mammal watching regulated by national or state government laws or regulations? "},{"$f":"'2. Addressing Activities & Thre'!B3","v":0},"Yes: All species","Yes: Some species","No",null,2,1,0,null,{"$f":"INDEX(G42:J42,MATCH(B42,C42:F42,0))","v":{"$error":"#N/A"}},{"$f":"G42","v":2}]
[{"$f":"'2. Addressing Activities & Thre'!A4","v":"Are there specific guidelines for marine mammal watching (rules of approach, types of vessels, noise etc) within the MPA? "},{"$f":"'2. Addressing Activities & Thre'!B4","v":0},"Compulsory","Encouraged","No","Not applicable",2,1,0,"N/A",{"$error":"#N/A"},{"$f":"IF(ISNUMBER(SEARCH(\"N/A\",K43)),\"N/A\",G43)","v":2}]
[{"$f":"'2. Addressing Activities & Thre'!A5","v":"Are types of vessels and spotting aircraft (and drones) regulated within the MPA?"},{"$f":"'2. Addressing Activities & Thre'!B5","v":"Yes"},"Yes","No","Not applicable",null,1,0,"N/A",null,1,{"$f":"IF(ISNUMBER(SEARCH(\"N/A\",K44)),\"N/A\",G44)","v":1}]
[{"$f":"'2. Addressing Activities & Thre'!A6","v":"Are approach-distances, altitudes etc. of aircraft and drones regulated within the MPA? "},{"$f":"'2. Addressing Activities & Thre'!B6","v":0},"Yes","No","Not applicable",null,1,0,"N/A",null,{"$error":"#N/A"},{"$f":"IF(ISNUMBER(SEARCH(\"N/A\",K45)),\"N/A\",G45)","v":1}]
[{"$f":"'2. Addressing Activities & Thre'!A7","v":"Do guidelines forbid touching, feeding, use of scuba, and loud noise?"},{"$f":"'2. Addressing Activities & Thre'!B7","v":0},"Yes","No","Not applicable",null,1,0,"N/A",null,{"$error":"#N/A"},1]
[{"$f":"'2. Addressing Activities & Thre'!A8","v":"Are observers on marine mammal watching vessels required at all times? "},{"$f":"'2. Addressing Activities & Thre'!B8","v":0},"Yes","No","Not applicable",null,1,0,"N/A",null,{"$error":"#N/A"},1]
[{"$f":"'2. Addressing Activities & Thre'!A9","v":"Are trained and empowered naturalist guides required on every trip? "},{"$f":"'2. Addressing Activities & Thre'!B9","v":0},"Yes","No","Not applicable",null,1,0,"N/A",null,{"$error":"#N/A"},1]
[{"$f":"'2. Addressing Activities & Thre'!A10","v":"Are licence numbers restricted based on marine mammal conservation needs?"},{"$f":"'2. Addressing Activities & Thre'!B10","v":0},"Yes","No","Not applicable",null,1,0,"N/A",null,{"$error":"#N/A"},1]
[{"$f":"'2. Addressing Activities & Thre'!A11","v":"Is there periodic assessment of compliance of the marine mammal industry with management goals and legislation? "},{"$f":"'2. Addressing Activities & Thre'!B11","v":0},"Yes","No","Not applicable",null,1,0,"N/A",null,{"$error":"#N/A"},1]
[{"$f":"'2. Addressing Activities & Thre'!A12","v":"Is there enforcement of maximum visitation rules through Automatic Identification System (vessel tracking)?"},{"$f":"'2. Addressing Activities & Thre'!B12","v":0},"Yes","No","Not applicable",null,1,0,"N/A",null,{"$error":"#N/A"},1]
[{"$f":"'2. Addressing Activities & Thre'!A13","v":"Do marine mammal watching operators within the MPA collectively (through an association) promote sustainable actions? "},{"$f":"'2. Addressing Activities & Thre'!B13","v":0},"Yes","No","Not applicable",null,1,0,"N/A",null,{"$error":"#N/A"},1]
[{"$f":"'2. Addressing Activities & Thre'!A14","v":"Are marine mammal watching operators required to obtain training and certification? "},{"$f":"'2. Addressing Activities & Thre'!B14","v":0},"Compulsory","Encouraged","No","Not applicable",2,1,0,"N/A",{"$error":"#N/A"},2]
[{"$f":"'2. Addressing Activities & Thre'!A15","v":0},{"$f":"'2. Addressing Activities & Thre'!B15","v":0},null,null,null,null,"Total Score:",null,null,null,{"$f":"SUM(K42:K53)","v":{"$error":"#N/A"}},{"$f":"SUM(L42:L53)","v":15},{"$f":"(K54/L54)*100","v":{"$error":"#N/A"}}]
[{"$f":"'2. Addressing Activities & Thre'!A16","v":"6. Noise management"},{"$f":"'2. Addressing Activities & Thre'!B16","v":0}]
[{"$f":"'2. Addressing Activities & Thre'!A17","v":"Are strict underwater noise limits (based on scientific research) invoked within the permit process?"},{"$f":"'2. Addressing Activities & Thre'!B17","v":0},"Yes","No",null,null,1,0,null,null,{"$error":"#N/A"},{"$f":"G56","v":1}]
[{"$f":"'2. Addressing Activities & Thre'!A18","v":"Are seismic surveys (for research and economic activities) prohibited during important times for marine mammals? "},{"$f":"'2. Addressing Activities & Thre'!B18","v":0},"Yes: Permanently","Not actively carried out","No",null,2,1,0,null,{"$error":"#N/A"},{"$f":"G57","v":2}]
[{"$f":"'2. Addressing Activities & Thre'!A19","v":"Is there clear legislative responsibility for minimising the impacts of underwater noise?"},{"$f":"'2. Addressing Activities & Thre'!B19","v":0},"Yes","No",null,null,1,0,null,null,{"$error":"#N/A"},1]
[{"$f":"'2. Addressing Activities & Thre'!A20","v":"Are important marine mammal areas subject to tighter controls on underwater noise?"},{"$f":"'2. Addressing Activities & Thre'!B20","v":0},"Yes","No",null,null,1,0,null,null,{"$error":"#N/A"},{"$f":"G59","v":1}]
[{"$f":"'2. Addressing Activities & Thre'!A21","v":"Are there season-specific noise restrictions or prohibition in place?"},{"$f":"'2. Addressing Activities & Thre'!B21","v":0},"Yes","No",null,null,1,0,null,null,{"$error":"#N/A"},{"$f":"G60","v":1}]
[{"$f":"'2. Addressing Activities & Thre'!A22","v":"Are specific minimum mitigation requirements to be met in the case of certain developments outlined in legislation or regulation? "},{"$f":"'2. Addressing Activities & Thre'!B22","v":0},"Yes","No",null,null,1,0,null,null,{"$error":"#N/A"},1]
[{"$f":"'2. Addressing Activities & Thre'!A23","v":"Are specified techniques (i.e. 'soft start') prescribed to mitigate the effects of construction/development activities? "},{"$f":"'2. Addressing Activities & Thre'!B23","v":0},"Yes","No",null,null,1,0,null,null,{"$error":"#N/A"},1]
[{"$f":"'2. Addressing Activities & Thre'!A24","v":"Are noise limits in place for specific types of construction, where necessary? E.g. Pile-driving for offshore wind farms "},{"$f":"'2. Addressing Activities & Thre'!B24","v":0},"Yes","No",null,null,1,0,null,null,{"$error":"#N/A"},1]
[{"$f":"'2. Addressing Activities & Thre'!A25","v":"Are allowable limits of ambient noise for fixed, mobile and vibration sources in place?"},{"$f":"'2. Addressing Activities & Thre'!B25","v":0},"Yes","No",null,null,1,0,null,null,{"$error":"#N/A"},1]
[{"$f":"'2. Addressing Activities & Thre'!A26","v":"Are marine mammal observers or acoustic monitors required during construction or when seismic surveys are undertaken? "},{"$f":"'2. Addressing Activities & Thre'!B26","v":0},"Yes","No",null,null,1,0,null,null,{"$error":"#N/A"},1]
[{"$f":"'2. Addressing Activities & Thre'!A27","v":"Is the use of sonar (e.g. during military exercises) regulated in certain seasons? "},{"$f":"'2. Addressing Activities & Thre'!B27","v":0},"Yes","No",null,null,1,0,null,null,{"$error":"#N/A"},1]
[{"$f":"'2. Addressing Activities & Thre'!A28","v":"Does the MPA have a strategy  to reduce the impact of commercial vessel noise on marine mammals (i.e. shipping lanes, slow speed zones, noise reduction)? "},{"$f":"'2. Addressing Activities & Thre'!B28","v":0},"Yes","No",null,null,1,0,null,null,{"$error":"#N/A"},1]
[{"$f":"'2. Addressing Activities & Thre'!A29","v":"Is passive monitoring of cetaceans and underwater noise undertaken within the MPA? "},{"$f":"'2. Addressing Activities & Thre'!B29","v":0},"Yes","No",null,null,1,0,null,null,{"$f":"INDEX(G68:J68,MATCH(B68,C68:F68,0))","v":{"$error":"#N/A"}},{"$f":"G68","v":1}]
[{"$f":"'2. Addressing Activities & Thre'!A30","v":0},{"$f":"'2. Addressing Activities & Thre'!B30","v":0},null,null,null,null,"Total Score:",null,null,null,{"$f":"SUM(K56:K68)","v":{"$error":"#N/A"}},{"$f":"SUM(L56:L68)","v":14},{"$f":"(K69/L69)*100","v":{"$error":"#N/A"}}]
[{"$f":"'2. Addressing Activities & Thre'!A31","v":"7. Entanglement in fishing gear and other installations"},{"$f":"'2. Addressing Activities & Thre'!B31","v":0}]
[{"$f":"'2. Addressing Activities & Thre'!A32","v":"Are non-fishing activities with the potential to cause marine mammal entanglement (offshore energy, aquaculture etc) prohibited in key marine mammal areas within the MPA? "},{"$f":"'2. Addressing Activities & Thre'!B32","v":0},"Yes","Non-Existent","No",null,2,1,0,null,{"$f":"INDEX(G71:J71,MATCH(B71,C71:F71,0))","v":{"$error":"#N/A"}},{"$f":"G71","v":2}]
[{"$f":"'2. Addressing Activities & Thre'!A33","v":"Are fishers and other marine users subject to communication and awareness programmes regarding interactions with marine mammals? "},{"$f":"'2. Addressing Activities & Thre'!B33","v":0},"Yes","No",null,null,1,0,null,null,{"$error":"#N/A"},{"$f":"G72","v":1}]
[{"$f":"'2. Addressing Activities & Thre'!A34","v":"Is immediate reporting of marine mammal entanglements compulsory for fishers or other marine operators? "},{"$f":"'2. Addressing Activities & Thre'!B34","v":0},"Compulsory","Encouraged","No",null,2,1,0,null,{"$error":"#N/A"},2]
[{"$f":"'2. Addressing Activities & Thre'!A35","v":"Are marine mammal entanglement numbers, locations, species and gear types recorded in a central database? "},{"$f":"'2. Addressing Activities & Thre'!B35","v":0},"Yes","No",null,null,1,0,null,null,{"$error":"#N/A"},{"$f":"G74","v":1}]
[{"$f":"'2. Addressing Activities & Thre'!A36","v":"Are formal, best-practice strategies in place for responses to entanglements? "},{"$f":"'2. Addressing Activities & Thre'!B36","v":0},"Yes","No",null,null,1,0,null,null,{"$error":"#N/A"},{"$f":"G75","v":1}]
[{"$f":"'2. Addressing Activities & Thre'!A37","v":"Is 'ropeless trap' technology used and/or encouraged? "},{"$f":"'2. Addressing Activities & Thre'!B37","v":0},"Yes","No",null,null,1,0,null,null,{"$error":"#N/A"},1]
[{"$f":"'2. Addressing Activities & Thre'!A38","v":0},{"$f":"'2. Addressing Activities & Thre'!B38","v":0},null,null,null,null,"Total Score:",null,null,null,{"$f":"SUM(K71:K76)","v":{"$error":"#N/A"}},{"$f":"SUM(L71:L76)","v":8},{"$f":"(K77/L77)*100","v":{"$error":"#N/A"}}]
[{"$f":"'2. Addressing Activities & Thre'!A39","v":"8. Marine Mammal By-catch (fishing)"},{"$f":"'2. Addressing Activities & Thre'!B39","v":0}]
[{"$f":"'2. Addressing Activities & Thre'!A40","v":" Is fishing banned or restricted (effort) in key marine mammal zones areas within the MPA? "},{"$f":"'2. Addressing Activities & Thre'!B40","v":0},"Yes: Banned","Yes: Restricted or banned in some areas","No",null,2,1,0,null,{"$error":"#N/A"},2]
[{"$f":"'2. Addressing Activities & Thre'!A41","v":"Is net fishing banned within the MPA? "},{"$f":"'2. Addressing Activities & Thre'!B41","v":0},"Yes: All net gears are banned","Yes: Some net gears are banned","No",null,2,1,0,null,{"$error":"#N/A"},2]
[{"$f":"'2. Addressing Activities & Thre'!A42","v":" Is net fishing regulated within key zones in the MPA? "},{"$f":"'2. Addressing Activities & Thre'!B42","v":0},"Banned","Restricted","Unrestricted",null,2,1,0,null,{"$error":"#N/A"},2]
[{"$f":"'2. Addressing Activities & Thre'!A43","v":"Are seasonal fishing restrictions in place to avoid the risk of cetacean by-catch? "},{"$f":"'2. Addressing Activities & Thre'!B43","v":0},"Yes","No",null,null,1,0,null,null,{"$error":"#N/A"},1]
[{"$f":"'2. Addressing Activities & Thre'!A44","v":"Are drift-nets banned or restricted within the MPA? "},{"$f":"'2. Addressing Activities & Thre'!B44","v":0},"Banned","Restricted","Unrestricted",null,2,1,0,null,{"$error":"#N/A"},{"$f":"G83","v":2}]
[{"$f":"'2. Addressing Activities & Thre'!A45","v":"Is gillnet use restricted or prohibited in certain areas and/or at certain times? "},{"$f":"'2. Addressing Activities & Thre'!B45","v":0},"Banned","Restricted","Unrestricted",null,2,1,0,null,{"$f":"INDEX(G84:J84,MATCH(B84,C84:F84,0))","v":{"$error":"#N/A"}},{"$f":"G84","v":2}]
[{"$f":"'2. Addressing Activities & Thre'!A46","v":"Are pingers or acoustic alarms required in the net or trawl fisheries? "},{"$f":"'2. Addressing Activities & Thre'!B46","v":0},"Compulsory","Encouraged","No","Not applicable",2,1,0,"N/A",{"$f":"INDEX(G85:J85,MATCH(B85,C85:F85,0))","v":{"$error":"#N/A"}},{"$f":"IF(ISNUMBER(SEARCH(\"N/A\",K85)),\"N/A\",G85)","v":2}]
[{"$f":"'2. Addressing Activities & Thre'!A47","v":"Are other technological strategies required (by regulation or legislation) in order to reduce marine mammal by-catch?"},{"$f":"'2. Addressing Activities & Thre'!B47","v":0}]
[{"$f":"'2. Addressing Activities & Thre'!A48","v":" - Light trawls replacing gillnets "},{"$f":"'2. Addressing Activities & Thre'!B48","v":0},"Yes","No",null,null,1,0,null,null,{"$error":"#N/A"},{"$f":"G87","v":1}]
[{"$f":"'2. Addressing Activities & Thre'!A49","v":" - stiffened and acoustically reflective gillnets "},{"$f":"'2. Addressing Activities & Thre'!B49","v":0},"Yes","No",null,null,1,0,null,null,{"$error":"#N/A"},{"$f":"G88","v":1}]
[{"$f":"'2. Addressing Activities & Thre'!A50","v":" - exclusion grids on trawls "},{"$f":"'2. Addressing Activities & Thre'!B50","v":0},"Yes","No",null,null,1,0,null,null,{"$error":"#N/A"},1]
[{"$f":"'2. Addressing Activities & Thre'!A51","v":" - excluding devices on stownets"},{"$f":"'2. Addressing Activities & Thre'!B51","v":0},"Yes","No",null,null,1,0,null,null,{"$error":"#N/A"},1]
[{"$f":"'2. Addressing Activities & Thre'!A52","v":" - longline modifications "},{"$f":"'2. Addressing Activities & Thre'!B52","v":0},"Yes","No",null,null,1,0,null,null,{"$error":"#N/A"},1]
[{"$f":"'2. Addressing Activities & Thre'!A53","v":" - gear modifications to pot and trap fisheries to reduce marine mammal entanglement "},{"$f":"'2. Addressing Activities & Thre'!B53","v":0},"Yes","No",null,null,1,0,null,null,{"$error":"#N/A"},1]
[{"$f":"'2. Addressing Activities & Thre'!A54","v":"Are artisanal fishing practices the only, if any, permitted fishery activity within the MPA? if ‘Yes’, select \"Not Applicable\" for the following questions. "},{"$f":"'2. Addressing Activities & Thre'!B54","v":0}]
[{"$f":"'2. Addressing Activities & Thre'!A55","v":"Are by-catch records (including species, locations and gear-types) recorded in a central database? "},{"$f":"'2. Addressing Activities & Thre'!B55","v":0},"Yes","No","Not applicable",null,1,0,"N/A",null,{"$error":"#N/A"},{"$f":"IF(ISNUMBER(SEARCH(\"N/A\",K94)),\"N/A\",G94)","v":1}]
[{"$f":"'2. Addressing Activities & Thre'!A56","v":"Is research into cetacean by-catch risk and mitigation being conducted? "},{"$f":"'2. Addressing Activities & Thre'!B56","v":0},"Yes","No","Not applicable",null,1,0,"N/A",null,{"$error":"#N/A"},{"$f":"IF(ISNUMBER(SEARCH(\"N/A\",K95)),\"N/A\",G95)","v":1}]
[{"$f":"'2. Addressing Activities & Thre'!A57","v":"Are stakeholder (fishing industry) outreach programs encouraging behavioural and technological mitigation strategies?"},{"$f":"'2. Addressing Activities & Thre'!B57","v":0},"Yes","No","Not applicable",null,1,0,"N/A",null,{"$error":"#N/A"},1]
[{"$f":"'2. Addressing Activities & Thre'!A58","v":"Are training programmes (to release entangled animals where possible) available to commercial fishermen? "},{"$f":"'2. Addressing Activities & Thre'!B58","v":0},"Yes","No","Not applicable",null,1,0,"N/A",null,{"$error":"#N/A"},1]
[{"$f":"'2. Addressing Activities & Thre'!A59","v":"Are observer monitoring programs required on commercial fishing vessels? "},{"$f":"'2. Addressing Activities & Thre'!B59","v":0},"All commercial fishing vessels","Only some commercial fishing vessels","No","Not applicable",2,1,0,"N/A",{"$error":"#N/A"},2]
[{"$f":"'2. Addressing Activities & Thre'!A60","v":0},{"$f":"'2. Addressing Activities & Thre'!B60","v":0},null,null,null,null,"Total Score:",null,null,null,{"$f":"SUM(K79:K98)","v":{"$error":"#N/A"}},{"$f":"SUM(L79:L98)","v":25},{"$f":"(K99/L99)*100","v":{"$error":"#N/A"}}]
[{"$f":"'2. Addressing Activities & Thre'!A61","v":"9. Marine mammal collision / strike"},{"$f":"'2. Addressing Activities & Thre'!B61","v":0}]
[{"$f":"'2. Addressing Activities & Thre'!A62","v":"Have areas of high vessel traffic been identified and mapped? "},{"$f":"'2. Addressing Activities & Thre'!B62","v":0},"Yes","No",null,null,2,0,null,null,{"$error":"#N/A"},{"$f":"G101","v":2}]
[{"$f":"'2. Addressing Activities & Thre'!A63","v":"Within areas of high vessel use, have the distributions and abundances of marine mammals been quantified in space and time?"},{"$f":"'2. Addressing Activities & Thre'!B63","v":0},"Yes","No",null,null,2,0,null,null,{"$error":"#N/A"},2]
[{"$f":"'2. Addressing Activities & Thre'!A64","v":"Have risk assessments been undertaken for species based on known distribution, critical habitat, vulnerability to vessel strike and vessel traffic? "},{"$f":"'2. Addressing Activities & Thre'!B64","v":0},"Yes","No",null,null,2,0,null,null,{"$error":"#N/A"},2]
[{"$f":"'2. Addressing Activities & Thre'!A65","v":"Is reporting of known vessel strikes facilitated (e.g. through online reporting)? "},{"$f":"'2. Addressing Activities & Thre'!B65","v":0},"Compulsory","Encouraged","No",null,2,1,0,null,{"$error":"#N/A"},2]
[{"$f":"'2. Addressing Activities & Thre'!A66","v":"Are vessel strike records collected and centrally held for analysis?"},{"$f":"'2. Addressing Activities & Thre'!B66","v":0},"Yes","No",null,null,2,0,null,null,{"$error":"#N/A"},2]
[{"$f":"'2. Addressing Activities & Thre'!A67","v":"Are vessel strikes reported to the International Whaling Commission (https://iwc.int/home) for their database? "},{"$f":"'2. Addressing Activities & Thre'!B67","v":0},"Yes","No",null,null,2,0,null,null,{"$error":"#N/A"},2]
[{"$f":"'2. Addressing Activities & Thre'!A68","v":"Where necropsies on stranded marine mammals suggest boat strike as a cause of death, is hindcasting used to estimate the location of the collision? "},{"$f":"'2. Addressing Activities & Thre'!B68","v":0},"Yes","No",null,null,2,0,null,null,{"$error":"#N/A"},2]
[{"$f":"'2. Addressing Activities & Thre'!A69","v":"Are large vessels (20 m length) restricted to below 10 knots within the MPA? "},{"$f":"'2. Addressing Activities & Thre'!B69","v":0},"Yes","No",null,null,2,0,null,null,{"$error":"#N/A"},2]
[{"$f":"'2. Addressing Activities & Thre'!A70","v":"Are speed limits below 10 knots in force within marine mammal critical habitat areas? "},{"$f":"'2. Addressing Activities & Thre'!B70","v":0},"Yes","No",null,null,2,0,null,null,{"$error":"#N/A"},2]
[{"$f":"'2. Addressing Activities & Thre'!A71","v":"Are seasonal or permanent bans on vessels entering particularly sensitive areas for marine mammals in place? "},{"$f":"'2. Addressing Activities & Thre'!B71","v":0},"Yes","No",null,null,2,0,null,null,{"$error":"#N/A"},2]
[{"$f":"'2. Addressing Activities & Thre'!A72","v":"Are vessels routed in a manner (i.e. Traffic Separation Scheme) designed to minimise the risk of collision with marine mammals? "},{"$f":"'2. Addressing Activities & Thre'!B72","v":0},"Yes","No",null,null,2,0,null,null,{"$error":"#N/A"},2]
[{"$f":"'2. Addressing Activities & Thre'!A73","v":0},{"$f":"'2. Addressing Activities & Thre'!B73","v":0},null,null,null,null,"Total Score:",null,null,null,{"$f":"SUM(K101:K111)","v":{"$error":"#N/A"}},{"$f":"SUM(L101:L111)","v":22},{"$f":"(K112/L112)*100","v":{"$error":"#N/A"}}]
[{"$f":"'2. Addressing Activities & Thre'!A74","v":"10. Marine mammal strandings (by MPA management or stranding network etc.)"},{"$f":"'2. Addressing Activities & Thre'!B74","v":0}]
[{"$f":"'2. Addressing Activities & Thre'!A75","v":"Does the MPA include coastal zone (s) (beaches, etc.)? "},{"$f":"'2. Addressing Activities & Thre'!B75","v":0}]
[{"$f":"'2. Addressing Activities & Thre'!A76","v":"Is there a system which gives the public the ability to report strandings in an efficient and rapid manner? "},{"$f":"'2. Addressing Activities & Thre'!B76","v":0},"Yes","No","Not applicable",null,2,0,"N/A",null,{"$f":"INDEX(G115:J115,MATCH(B115,C115:F115,0))","v":{"$error":"#N/A"}},{"$f":"G115","v":2}]
[{"$f":"'2. Addressing Activities & Thre'!A77","v":"Is there the capacity for an emergency response to attend to live strandings, transport live animals, apply medical treatment, and if possible refloat the animal? "},{"$f":"'2. Addressing Activities & Thre'!B77","v":0},"Yes","No","Not applicable",null,2,0,"N/A",null,{"$error":"#N/A"},2]
[{"$f":"'2. Addressing Activities & Thre'!A78","v":"Is there capacity to perform necroscopies (and take samples) by trained personnel from dead strandings in order to analyse mortality? "},{"$f":"'2. Addressing Activities & Thre'!B78","v":0},"Yes","No","Not applicable",null,2,0,"N/A",null,{"$error":"#N/A"},2]
[{"$f":"'2. Addressing Activities & Thre'!A79","v":"Is there capacity to identify population-wide health problems (i.e. toxic waste), with possible remediation actions? "},{"$f":"'2. Addressing Activities & Thre'!B79","v":0},"Yes","No","Not applicable",null,2,0,"N/A",null,{"$error":"#N/A"},2]
[{"$f":"'2. Addressing Activities & Thre'!A80","v":"Is data held in a central database that allows locations, causes of injury, illness or death, and species to be aggregated and therefore analysed? "},{"$f":"'2. Addressing Activities & Thre'!B80","v":0},"Yes","No","Not applicable",null,2,0,"N/A",null,{"$error":"#N/A"},2,null,"Addressing Activities & Threats"]
[{"$f":"'2. Addressing Activities & Thre'!A81","v":"Is there clear and accessible public communication and education regarding the reporting of strandings? "},{"$f":"'2. Addressing Activities & Thre'!B81","v":0},"Yes","No","Not applicable",null,1,0,"N/A",null,{"$error":"#N/A"},1]
[{"$f":"'2. Addressing Activities & Thre'!A82","v":"Is there clear and accessible public communication regarding stranding data in order to increase public awareness of cetaceans and the threats they face? "},{"$f":"'2. Addressing Activities & Thre'!B82","v":0},"Yes","No","Not applicable",null,1,0,"N/A",null,{"$error":"#N/A"},1,null,"Max Score","Awarded Score","%"]
[null,null,null,null,null,null,"Total Score:",null,null,null,{"$f":"SUM(K115:K121)","v":{"$error":"#N/A"}},{"$f":"SUM(L115:L121)","v":12},{"$f":"(K122/L122)*100","v":{"$error":"#N/A"}},{"$f":"SUM(L122,L112,L99,L77,L69,L54,)","v":96},{"$f":"SUM(K122,K112,K99,K77,K69,K54)","v":{"$error":"#N/A"}},{"$f":"(O122/N122)*100","v":{"$error":"#N/A"}}]
[{"$f":"'3. Research & Monitoring'!A1","v":"Research and monitoring"},{"$f":"'3. Research & Monitoring'!B1","v":0},null,null,null,null,null,null,null,null,null,null,null," "]
[{"$f":"'3. Research & Monitoring'!A2","v":"11. Baseline Knowledge - Ecology of Marine Mammal, their Habitats and their threats"},{"$f":"'3. Research & Monitoring'!B2","v":0}]
[{"$f":"'3. Research & Monitoring'!A3","v":"Are maps of marine mammal habitats and other relevant natural resources available? "},{"$f":"'3. Research & Monitoring'!B3","v":0},"Yes: All species","Yes: Some species","No",null,2,1,0,null,{"$error":"#N/A"},{"$f":"G125","v":2}]
[{"$f":"'3. Research & Monitoring'!A4","v":"Knowledge of the ecological status of marine mammals within the MPA? "},{"$f":"'3. Research & Monitoring'!B4","v":0},"Substantial and detailed","Moderate","Limited or none",null,2,1,0,null,{"$error":"#N/A"},2]
[{"$f":"'3. Research & Monitoring'!A5","v":"Have detailed analyses of specific local threats to marine mammals, along with their causes, been conducted? "},{"$f":"'3. Research & Monitoring'!B5","v":0},"Yes","Yes: In development","No",null,2,1,0,null,{"$error":"#N/A"},2]
[{"$f":"'3. Research & Monitoring'!A6","v":0},{"$f":"'3. Research & Monitoring'!B6","v":0},null,null,null,null,"Total Score:",null,null,null,{"$f":"SUM(K125:K127)","v":{"$error":"#N/A"}},{"$f":"SUM(L125:L127)","v":6},{"$f":"(K128/L128)*100","v":{"$error":"#N/A"}}]
[{"$f":"'3. Research & Monitoring'!A7","v":"12. Marine mammal ecological Monitoring - protocols and techniques"},{"$f":"'3. Research & Monitoring'!B7","v":0}]
[{"$f":"'3. Research & Monitoring'!A8","v":"Are standardised, best-practice monitoring protocols in place?"},{"$f":"'3. Research & Monitoring'!B8","v":0},"Yes","No",null,null,2,0,null,null,{"$error":"#N/A"},{"$f":"G130","v":2}]
[{"$f":"'3. Research & Monitoring'!A9","v":"Which of the following monitoring techniques are used? "},{"$f":"'3. Research & Monitoring'!B9","v":0}]
[{"$f":"'3. Research & Monitoring'!A10","v":" - photo ID"},{"$f":"'3. Research & Monitoring'!B10","v":0},"Yes","No",null,null,1,0,null,null,{"$f":"INDEX(G132:J132,MATCH(B132,C132:F132,0))","v":{"$error":"#N/A"}},{"$f":"G132","v":1}]
[{"$f":"'3. Research & Monitoring'!A11","v":" - transect counts"},{"$f":"'3. Research & Monitoring'!B11","v":0},"Yes","No",null,null,1,0,null,null,{"$error":"#N/A"},1]
[{"$f":"'3. Research & Monitoring'!A12","v":" - passive acoustic monitoring"},{"$f":"'3. Research & Monitoring'!B12","v":0},"Yes","No",null,null,1,0,null,null,{"$error":"#N/A"},1]
[{"$f":"'3. Research & Monitoring'!A13","v":" - biopsies for genetic analyses"},{"$f":"'3. Research & Monitoring'!B13","v":0},"Yes","No",null,null,1,0,null,null,{"$error":"#N/A"},1]
[{"$f":"'3. Research & Monitoring'!A14","v":" - GPS tracking"},{"$f":"'3. Research & Monitoring'!B14","v":0},"Yes","No",null,null,1,0,null,null,{"$error":"#N/A"},1]
[{"$f":"'3. Research & Monitoring'!A15","v":" - radio-tracking"},{"$f":"'3. Research & Monitoring'!B15","v":0},"Yes","No",null,null,1,0,null,null,{"$error":"#N/A"},1]
[{"$f":"'3. Research & Monitoring'!A16","v":" - acoustic tracking"},{"$f":"'3. Research & Monitoring'!B16","v":0},"Yes","No",null,null,1,0,null,null,{"$error":"#N/A"},1]
[{"$f":"'3. Research & Monitoring'!A17","v":" - aerial surveys from manned or unmanned aircraft"},{"$f":"'3. Research & Monitoring'!B17","v":0},"Yes","No",null,null,1,0,null,null,{"$error":"#N/A"},1]
[{"$f":"'3. Research & Monitoring'!A18","v":" - citizen science"},{"$f":"'3. Research & Monitoring'!B18","v":0},"Yes","No",null,null,1,0,null,null,{"$error":"#N/A"},1]
[{"$f":"'3. Research & Monitoring'!A19","v":" - data collection from tourism operators"},{"$f":"'3. Research & Monitoring'!B19","v":0},"Yes","No",null,null,1,0,null,null,{"$error":"#N/A"},1]
[{"$f":"'3. Research & Monitoring'!A20","v":" - stranding and by-catch data"},{"$f":"'3. Research & Monitoring'!B20","v":0},"Yes","No",null,null,1,0,null,null,{"$error":"#N/A"},1]
[{"$f":"'3. Research & Monitoring'!A21","v":"Does the MPA management or its collaborators have the technical capacity to fully analyse collected monitoring data?"},{"$f":"'3. Research & Monitoring'!B21","v":0},"Yes","No",null,null,2,0,null,null,{"$error":"#N/A"},2]
[{"$f":"'3. Research & Monitoring'!A22","v":"Is existing marine research and monitoring data maintained in the long term?"},{"$f":"'3. Research & Monitoring'!B22","v":0},"Yes","No",null,null,2,0,null,null,{"$error":"#N/A"},2]
[{"$f":"'3. Research & Monitoring'!A23","v":0},{"$f":"'3. Research & Monitoring'!B23","v":0},null,null,null,null,"Total Score:",null,null,null,{"$f":"SUM(K130:K144)","v":{"$error":"#N/A"}},{"$f":"SUM(L130:L144)","v":17},{"$f":"(K145/L145)*100","v":{"$error":"#N/A"}}]
[{"$f":"'3. Research & Monitoring'!A24","v":"13. Measured Ecological Variables (by MPA management or partner organisations)"},{"$f":"'3. Research & Monitoring'!B24","v":0}]
[{"$f":"'3. Research & Monitoring'!A25","v":"Which of the following ecological variables concerning marine mammals are monitored?"},{"$f":"'3. Research & Monitoring'!B25","v":0}]
[{"$f":"'3. Research & Monitoring'!A26","v":" - diversity"},{"$f":"'3. Research & Monitoring'!B26","v":0},"Yes: All species","Yes: Some species","No",null,2,1,0,null,{"$error":"#N/A"},{"$f":"G148","v":2}]
[{"$f":"'3. Research & Monitoring'!A27","v":" - seasonal movements"},{"$f":"'3. Research & Monitoring'!B27","v":0},"Yes: All species","Yes: Some species","No",null,2,1,0,null,{"$error":"#N/A"},{"$f":"G149","v":2}]
[{"$f":"'3. Research & Monitoring'!A28","v":" - species distributions"},{"$f":"'3. Research & Monitoring'!B28","v":0},"Yes: All species","Yes: Some species","No",null,2,1,0,null,{"$error":"#N/A"},2]
[{"$f":"'3. Research & Monitoring'!A29","v":" - habitat usage"},{"$f":"'3. Research & Monitoring'!B29","v":0},"Yes: All species","Yes: Some species","No",null,2,1,0,null,{"$error":"#N/A"},2]
[{"$f":"'3. Research & Monitoring'!A30","v":" - population groupings"},{"$f":"'3. Research & Monitoring'!B30","v":0},"Yes: All species","Yes: Some species","No",null,2,1,0,null,{"$error":"#N/A"},2]
[{"$f":"'3. Research & Monitoring'!A31","v":" - abundance of each species"},{"$f":"'3. Research & Monitoring'!B31","v":0},"Yes: All species","Yes: Some species","No",null,2,1,0,null,{"$error":"#N/A"},2]
[{"$f":"'3. Research & Monitoring'!A32","v":" - connectivity between populations"},{"$f":"'3. Research & Monitoring'!B32","v":0},"Yes: All species","Yes: Some species","No",null,2,1,0,null,{"$error":"#N/A"},2]
[{"$f":"'3. Research & Monitoring'!A33","v":" - behaviour"},{"$f":"'3. Research & Monitoring'!B33","v":0},"Yes: All species","Yes: Some species","No",null,2,1,0,null,{"$error":"#N/A"},2]
[{"$f":"'3. Research & Monitoring'!A34","v":" - migration characteristics"},{"$f":"'3. Research & Monitoring'!B34","v":0},"Yes: All species","Yes: Some species","No",null,2,1,0,null,{"$error":"#N/A"},2]
[{"$f":"'3. Research & Monitoring'!A35","v":"Are the following general ecological health indicators of the ecosystems within the MPA monitored?"},{"$f":"'3. Research & Monitoring'!B35","v":0}]
[{"$f":"'3. Research & Monitoring'!A36","v":"               - fish stocks "},{"$f":"'3. Research & Monitoring'!B36","v":0},"Yes","No",null,null,1,0,null,null,{"$error":"#N/A"},1]
[{"$f":"'3. Research & Monitoring'!A37","v":"               - abundance of macroalgal species "},{"$f":"'3. Research & Monitoring'!B37","v":0},"Yes","No","Not applicable",null,1,0,"N/A",null,{"$error":"#N/A"},{"$f":"IF(ISNUMBER(SEARCH(\"N/A\",K159)),\"N/A\",G159)","v":1}]
[{"$f":"'3. Research & Monitoring'!A38","v":"               - reef health "},{"$f":"'3. Research & Monitoring'!B38","v":0},"Yes","No","Not applicable",null,1,0,"N/A",null,{"$error":"#N/A"},{"$f":"IF(ISNUMBER(SEARCH(\"N/A\",K160)),\"N/A\",G160)","v":1}]
[{"$f":"'3. Research & Monitoring'!A39","v":"               - seagrass  abundance "},{"$f":"'3. Research & Monitoring'!B39","v":0},"Yes","No","Not applicable",null,1,0,"N/A",null,{"$error":"#N/A"},1]
[{"$f":"'3. Research & Monitoring'!A40","v":"               - plankton abundance "},{"$f":"'3. Research & Monitoring'!B40","v":0},"Yes","No",null,null,1,0,null,null,{"$error":"#N/A"},{"$f":"G162","v":1}]
[{"$f":"'3. Research & Monitoring'!A41","v":"Physical parameters over time and space "},{"$f":"'3. Research & Monitoring'!B41","v":0}]
[{"$f":"'3. Research & Monitoring'!A42","v":"               - sea temperatures"},{"$f":"'3. Research & Monitoring'!B42","v":0},"Yes","No",null,null,1,0,null,null,{"$error":"#N/A"},{"$f":"G164","v":1}]
[{"$f":"'3. Research & Monitoring'!A43","v":"               - ocean acidity (pH)"},{"$f":"'3. Research & Monitoring'!B43","v":0},"Yes","No",null,null,1,0,null,null,{"$error":"#N/A"},1]
[{"$f":"'3. Research & Monitoring'!A44","v":"               - salinity"},{"$f":"'3. Research & Monitoring'!B44","v":0},"Yes","No",null,null,1,0,null,null,{"$error":"#N/A"},1]
[{"$f":"'3. Research & Monitoring'!A45","v":"               - other relevant physical or chemical variables  (i.e. current speed)"},{"$f":"'3. Research & Monitoring'!B45","v":0},"Yes","No",null,null,1,0,null,null,{"$error":"#N/A"},1]
[{"$f":"'3. Research & Monitoring'!A46","v":0},{"$f":"'3. Research & Monitoring'!B46","v":0},null,null,null,null,"Total Score:",null,null,null,{"$f":"SUM(K148:K167)","v":{"$error":"#N/A"}},{"$f":"SUM(L148:L167)","v":27},{"$f":"(K168/L168)*100","v":{"$error":"#N/A"}}]
[{"$f":"'3. Research & Monitoring'!A47","v":"14. Frequency of Marine Mammal Monitoring (by MPA management or partner organisations)"},{"$f":"'3. Research & Monitoring'!B47","v":0}]
[{"$f":"'3. Research & Monitoring'!A48","v":"For migratory species: "},{"$f":"'3. Research & Monitoring'!B48","v":0},"Annually","Every 2-5 years","Rarely or Never","No migratory species",2,1,0,"N/A",{"$f":"INDEX(G170:J170,MATCH(B170,C170:F170,0))","v":{"$error":"#N/A"}},{"$f":"IF(ISNUMBER(SEARCH(\"N/A\",K170)),\"N/A\",G170)","v":2}]
[{"$f":"'3. Research & Monitoring'!A49","v":"For resident species: "},{"$f":"'3. Research & Monitoring'!B49","v":0},"Multiple times per year reflecting seasonal factors ","Every 1 or 2 years","Rarely or Never",null,2,1,0,null,{"$error":"#N/A"},{"$f":"G171","v":2}]
[{"$f":"'3. Research & Monitoring'!A50","v":"Physical parameters: "},{"$f":"'3. Research & Monitoring'!B50","v":0},"Ongoing (>6 times per year)","Each season (<6 times per year)","Rarely or never",null,2,1,0,null,{"$error":"#N/A"},2]
[{"$f":"'3. Research & Monitoring'!A51","v":0},{"$f":"'3. Research & Monitoring'!B51","v":0},null,null,null,null,"Total Score:",null,null,null,{"$f":"SUM(K170:K172)","v":{"$error":"#N/A"}},{"$f":"SUM(L170:L172)","v":6},{"$f":"(K173/L173)*100","v":{"$error":"#N/A"}}]
[{"$f":"'3. Research & Monitoring'!A52","v":"15. Data sharing concerning marine mammals"},{"$f":"'3. Research & Monitoring'!B52","v":0}]
[{"$f":"'3. Research & Monitoring'!A53","v":"Is monitoring and reporting data (raw data and metadata) readily shared between agencies and with researchers?"},{"$f":"'3. Research & Monitoring'!B53","v":"Partially"},"Yes","Partially","No",null,2,1,0,null,1,{"$f":"G175","v":2}]
[{"$f":"'3. Research & Monitoring'!A54","v":"Is monitoring data and reporting publicly accessible (online)? "},{"$f":"'3. Research & Monitoring'!B54","v":0},"Yes","Partially","No",null,2,1,0,null,{"$error":"#N/A"},2]
[{"$f":"'3. Research & Monitoring'!A55","v":0},{"$f":"'3. Research & Monitoring'!B55","v":0},null,null,null,null,"Total Score:",null,null,null,{"$f":"SUM(K175:K176)","v":{"$error":"#N/A"}},{"$f":"SUM(L175:L176)","v":4},{"$f":"(K177/L177)*100","v":{"$error":"#N/A"}}]
[{"$f":"'3. Research & Monitoring'!A56","v":"16. Socio-economic monitoring (by the MPA management or partner organisations)"},{"$f":"'3. Research & Monitoring'!B56","v":0}]
[{"$f":"'3. Research & Monitoring'!A57","v":"Has the overall economic value of marine mammals in the MPA been studied?"},{"$f":"'3. Research & Monitoring'!B57","v":0},"Yes","No",null,null,2,0,null,null,{"$error":"#N/A"},{"$f":"G179","v":2}]
[{"$f":"'3. Research & Monitoring'!A58","v":"What of the following socio-economic variables are monitored?"},{"$f":"'3. Research & Monitoring'!B58","v":0}]
[{"$f":"'3. Research & Monitoring'!A59","v":" - commercial ship traffic (numbers, routes, sizes, speed, noise, vessel strikes)"},{"$f":"'3. Research & Monitoring'!B59","v":0},"Yes","No","Not applicable",null,1,0,"N/A",null,{"$f":"INDEX(G181:J181,MATCH(B181,C182:F182,0))","v":{"$error":"#N/A"}},{"$f":"IF(ISNUMBER(SEARCH(\"N/A\",K181)),\"N/A\",G181)","v":1}]
[{"$f":"'3. Research & Monitoring'!A60","v":" - commercial fishing data (numbers of boats, locations, dates, types of fishery, types of devices used, by-catch.)"},{"$f":"'3. Research & Monitoring'!B60","v":0},"Yes","No","Not applicable",null,1,0,"N/A",null,{"$f":"INDEX(G182:J182,MATCH(B182,C183:F183,0))","v":{"$error":"#N/A"}},1]
[{"$f":"'3. Research & Monitoring'!A61","v":" - commercial catch data (species, number/weight, date)"},{"$f":"'3. Research & Monitoring'!B61","v":0},"Yes","No","Not applicable",null,1,0,"N/A",null,{"$error":"#N/A"},1]
[{"$f":"'3. Research & Monitoring'!A62","v":" - whale watching (includes dolphins) data (number of boats, number of passengers, duration of season)"},{"$f":"'3. Research & Monitoring'!B62","v":0},"Yes","No","Not applicable",null,1,0,"N/A",null,{"$error":"#N/A"},1]
[{"$f":"'3. Research & Monitoring'!A63","v":" - economic value of whale watching (nationally, to region, local communities, flow-on effects)."},{"$f":"'3. Research & Monitoring'!B63","v":0},"Yes","No","Not applicable",null,1,0,"N/A",null,{"$error":"#N/A"},1]
[{"$f":"'3. Research & Monitoring'!A64","v":" - recreational fishing and other activities (numbers, number of days, locations)"},{"$f":"'3. Research & Monitoring'!B64","v":0},"Yes","No","Not applicable",null,1,0,"N/A",null,{"$error":"#N/A"},1]
[{"$f":"'3. Research & Monitoring'!A65","v":" - marine litter  (rubbish types and amounts, ghost nets, other abandoned fishing gear) through space and time"},{"$f":"'3. Research & Monitoring'!B65","v":0},"Yes","No","Not applicable",null,1,0,"N/A",null,{"$error":"#N/A"},1]
[{"$f":"'3. Research & Monitoring'!A66","v":" - water quality (nutrient levels, other potential pollutants, salinity) through space and time"},{"$f":"'3. Research & Monitoring'!B66","v":0},"Yes","No","Not applicable",null,1,0,"N/A",null,{"$error":"#N/A"},1]
[{"$f":"'3. Research & Monitoring'!A67","v":" - scientific research (number of projects, monetary investment in research, research specific to marine mammals)"},{"$f":"'3. Research & Monitoring'!B67","v":0},"Yes","No","Not applicable",null,1,0,"N/A",null,{"$error":"#N/A"},1]
[{"$f":"'3. Research & Monitoring'!A68","v":0},{"$f":"'3. Research & Monitoring'!B68","v":0},null,null,null,null,"Total Score:",null,null,null,{"$f":"SUM(K179:K189)","v":{"$error":"#N/A"}},{"$f":"SUM(L179:L189)","v":11},{"$f":"(K190/L190)*100","v":{"$error":"#N/A"}}]
[{"$f":"'3. Research & Monitoring'!A69","v":"17. Marine Mammal Research / scientific permits / agreements"},{"$f":"'3. Research & Monitoring'!B69","v":0}]
[{"$f":"'3. Research & Monitoring'!A70","v":"Have marine mammal research priorities within the MPA been identified?"},{"$f":"'3. Research & Monitoring'!B70","v":0},"Yes","No",null,null,2,0,null,null,{"$error":"#N/A"},{"$f":"G192","v":2}]
[{"$f":"'3. Research & Monitoring'!A71","v":"Are marine mammal research activities and partnerships outlined in publicly-available documents?"},{"$f":"'3. Research & Monitoring'!B71","v":0},"Yes ","Some projects","No",null,2,1,0,null,{"$error":"#N/A"},2]
[{"$f":"'3. Research & Monitoring'!A72","v":"Is an effective scientific and social marine mammal research permitting system in place?"},{"$f":"'3. Research & Monitoring'!B72","v":0},"Yes","No",null,null,2,0,null,null,{"$error":"#N/A"},2,null,"Research and monitoring"]
[{"$f":"'3. Research & Monitoring'!A73","v":"Is marine mammal research funding, facilitation and collaboration effective and prioritised and transparent?"},{"$f":"'3. Research & Monitoring'!B73","v":0},"Yes","No",null,null,2,0,null,null,{"$error":"#N/A"},2]
[{"$f":"'3. Research & Monitoring'!A74","v":"Does the MPA have MoUs or partnerships with other organisations related to marine mammal research (other MPAs, universities, research organisations etc)?"},{"$f":"'3. Research & Monitoring'!B74","v":0},"Yes","No",null,null,2,0,null,null,{"$f":"INDEX(G196:J196,MATCH(B196,C196:F196,0))","v":{"$error":"#N/A"}},2,null,"Max Score","Awarded Score","%"]
[null,null,null,null,null,null,"Total Score:",null,null,null,{"$f":"SUM(K192:K196)","v":{"$error":"#N/A"}},{"$f":"SUM(L192:L196)","v":10},{"$f":"(K197/L197)*100","v":{"$error":"#N/A"}},{"$f":"SUM(L197,L190,L177,L173,L168,L145,L128)","v":81},{"$f":"SUM(K197,K190,K177,K173,K168,K145,K128)","v":{"$error":"#N/A"}},{"$f":"(O197/N197)*100","v":{"$error":"#N/A"}}]
[{"$f":"'4. Outreach & Engagement'!A1","v":"Outreach and engagement"},{"$f":"'4. Outreach & Engagement'!B1","v":0}]
[{"$f":"'4. Outreach & Engagement'!A2","v":"18. Involvement of stakeholders and other partners in marine mammal management"},{"$f":"'4. Outreach & Engagement'!B2","v":0}]
[{"$f":"'4. Outreach & Engagement'!A3","v":"Is there policy and management collaboration between MPA management and the following non-commercial stakeholders (where applicable)?"},{"$f":"'4. Outreach & Engagement'!B3","v":0}]
[{"$f":"'4. Outreach & Engagement'!A4","v":"  - Local communities "},{"$f":"'4. Outreach & Engagement'!B4","v":0},"Yes","No","Not applicable",null,1,0,"N/A",null,{"$error":"#N/A"},{"$f":"IF(ISNUMBER(SEARCH(\"N/A\",K201)),\"N/A\",G201)","v":1}]
[{"$f":"'4. Outreach & Engagement'!A5","v":"  - Traditional owners "},{"$f":"'4. Outreach & Engagement'!B5","v":0},"Yes","No","Not applicable",null,1,0,"N/A",null,{"$error":"#N/A"},1]
[{"$f":"'4. Outreach & Engagement'!A6","v":"  - Artisanal fishers "},{"$f":"'4. Outreach & Engagement'!B6","v":0},"Yes","No","Not applicable",null,1,0,"N/A",null,{"$error":"#N/A"},1]
[{"$f":"'4. Outreach & Engagement'!A7","v":"  - Recreational fishers "},{"$f":"'4. Outreach & Engagement'!B7","v":0},"Yes","No","Not applicable",null,1,0,"N/A",null,{"$error":"#N/A"},1]
[{"$f":"'4. Outreach & Engagement'!A8","v":"  - Non-government conservation organisations"},{"$f":"'4. Outreach & Engagement'!B8","v":0},"Yes","No","Not applicable",null,1,0,"N/A",null,{"$error":"#N/A"},1]
[{"$f":"'4. Outreach & Engagement'!A9","v":"Is there policy and management collaboration between MPA management and the following commercial stakeholders?"},{"$f":"'4. Outreach & Engagement'!B9","v":0}]
[{"$f":"'4. Outreach & Engagement'!A10","v":"  - Tourism operators "},{"$f":"'4. Outreach & Engagement'!B10","v":0},"Yes","No","Not applicable",null,1,0,"N/A",null,{"$error":"#N/A"},1]
[{"$f":"'4. Outreach & Engagement'!A11","v":"  - Commercial fishers "},{"$f":"'4. Outreach & Engagement'!B11","v":0},"Yes","No","Not applicable",null,1,0,"N/A",null,{"$error":"#N/A"},1]
[{"$f":"'4. Outreach & Engagement'!A12","v":"  - Mineral resource developers  "},{"$f":"'4. Outreach & Engagement'!B12","v":0},"Yes","No","Not applicable",null,1,0,"N/A",null,{"$error":"#N/A"},1]
[{"$f":"'4. Outreach & Engagement'!A13","v":"  - Shipping operators or organisations "},{"$f":"'4. Outreach & Engagement'!B13","v":0},"Yes","No","Not applicable",null,1,0,"N/A",null,{"$error":"#N/A"},1]
[{"$f":"'4. Outreach & Engagement'!A14","v":"  - Aquaculture industry"},{"$f":"'4. Outreach & Engagement'!B14","v":0},"Yes","No","Not applicable",null,1,0,"N/A",null,{"$error":"#N/A"},1]
[{"$f":"'4. Outreach & Engagement'!A15","v":"  - Renewable energy industry "},{"$f":"'4. Outreach & Engagement'!B15","v":0},"Yes","No","Not applicable",null,1,0,"N/A",null,{"$error":"#N/A"},1]
[{"$f":"'4. Outreach & Engagement'!A16","v":"  - Defence "},{"$f":"'4. Outreach & Engagement'!B16","v":0},"Yes","No","Not applicable",null,1,0,"N/A",null,{"$error":"#N/A"},1]
[{"$f":"'4. Outreach & Engagement'!A17","v":"Is the MPA incorporated into marine mammal regional agreements, networks or action plans?"},{"$f":"'4. Outreach & Engagement'!B17","v":0},"Yes","No",null,null,2,0,null,null,{"$error":"#N/A"},{"$f":"G214","v":2}]
[{"$f":"'4. Outreach & Engagement'!A18","v":0},{"$f":"'4. Outreach & Engagement'!B18","v":0},null,null,null,null,"Total Score:",null,null,null,{"$f":"SUM(K201:K214)","v":{"$error":"#N/A"}},{"$f":"SUM(L201:L214)","v":14},{"$f":"(K215/L215)*100","v":{"$error":"#N/A"}}]
[{"$f":"'4. Outreach & Engagement'!A19","v":"19. Education / Communication / Awareness raising"},{"$f":"'4. Outreach & Engagement'!B19","v":0}]
[{"$f":"'4. Outreach & Engagement'!A20","v":"Are marine mammal education and awareness programs directed at the following user groups? "},{"$f":"'4. Outreach & Engagement'!B20","v":0}]
[{"$f":"'4. Outreach & Engagement'!A21","v":"  - Local communities"},{"$f":"'4. Outreach & Engagement'!B21","v":0},"Yes","No","Not applicable",null,1,0,"N/A",null,{"$error":"#N/A"},{"$f":"IF(ISNUMBER(SEARCH(\"N/A\",K218)),\"N/A\",G218)","v":1}]
[{"$f":"'4. Outreach & Engagement'!A22","v":"  - Traditional owners"},{"$f":"'4. Outreach & Engagement'!B22","v":0},"Yes","No","Not applicable",null,1,0,"N/A",null,{"$error":"#N/A"},1]
[{"$f":"'4. Outreach & Engagement'!A23","v":"  - Artisanal fishers"},{"$f":"'4. Outreach & Engagement'!B23","v":0},"Yes","No","Not applicable",null,1,0,"N/A",null,{"$error":"#N/A"},1]
[{"$f":"'4. Outreach & Engagement'!A24","v":"  - Recreational fishers"},{"$f":"'4. Outreach & Engagement'!B24","v":0},"Yes","No","Not applicable",null,1,0,"N/A",null,{"$error":"#N/A"},1]
[{"$f":"'4. Outreach & Engagement'!A25","v":"  - Non-government conservation organisations"},{"$f":"'4. Outreach & Engagement'!B25","v":0},"Yes","No","Not applicable",null,1,0,"N/A",null,{"$error":"#N/A"},1]
[{"$f":"'4. Outreach & Engagement'!A26","v":"  - Tourism operators"},{"$f":"'4. Outreach & Engagement'!B26","v":0},"Yes","No","Not applicable",null,1,0,"N/A",null,{"$error":"#N/A"},1]
[{"$f":"'4. Outreach & Engagement'!A27","v":"  - Commercial fishers"},{"$f":"'4. Outreach & Engagement'!B27","v":0},"Yes","No","Not applicable",null,1,0,"N/A",null,{"$error":"#N/A"},1]
[{"$f":"'4. Outreach & Engagement'!A28","v":"  - Mineral resource developers"},{"$f":"'4. Outreach & Engagement'!B28","v":0},"Yes","No","Not applicable",null,1,0,"N/A",null,{"$error":"#N/A"},1]
[{"$f":"'4. Outreach & Engagement'!A29","v":"  - Shipping operators or organisations"},{"$f":"'4. Outreach & Engagement'!B29","v":0},"Yes","No","Not applicable",null,1,0,"N/A",null,{"$error":"#N/A"},1]
[{"$f":"'4. Outreach & Engagement'!A30","v":"  - Aquaculture industry"},{"$f":"'4. Outreach & Engagement'!B30","v":0},"Yes","No","Not applicable",null,1,0,"N/A",null,{"$error":"#N/A"},1]
[{"$f":"'4. Outreach & Engagement'!A31","v":"  - Renewable energy industry"},{"$f":"'4. Outreach & Engagement'!B31","v":0},"Yes","No","Not applicable",null,1,0,"N/A",null,{"$error":"#N/A"},1]
[{"$f":"'4. Outreach & Engagement'!A32","v":"  - Defence"},{"$f":"'4. Outreach & Engagement'!B32","v":0},"Yes","No","Not applicable",null,1,0,"N/A",null,{"$error":"#N/A"},1]
[{"$f":"'4. Outreach & Engagement'!A33","v":"Are marine mammal education and awareness programs aimed at government ministries, personnel and/or policymakers? "},{"$f":"'4. Outreach & Engagement'!B33","v":0},"Yes","No",null,null,2,0,null,null,{"$error":"#N/A"},{"$f":"G230","v":2},null,"Outreach and engagement"]
[{"$f":"'4. Outreach & Engagement'!A34","v":"Are all relevant marine mammal policy and other documents readily available? "},{"$f":"'4. Outreach & Engagement'!B34","v":0},"Yes: Available online","Yes: Available upon request","No",null,2,1,0,null,{"$error":"#N/A"},2]
[{"$f":"'4. Outreach & Engagement'!A35","v":"Is there a programme of participatory / citizen science with regard to marine mammals?"},{"$f":"'4. Outreach & Engagement'!B35","v":0},"Yes","No",null,null,2,0,null,null,{"$error":"#N/A"},2,null,"Max Score","Awarded Score","%"]
[null,null,null,null,null,null,"Total Score:",null,null,null,{"$f":"SUM(K218:K232)","v":{"$error":"#N/A"}},{"$f":"SUM(L218:L232)","v":18},{"$f":"(K233/L233)*100","v":{"$error":"#N/A"}},{"$f":"SUM(L233,L215)","v":32},{"$f":"SUM(K233,K215)","v":{"$error":"#N/A"}},{"$f":"(O233/N233)*100","v":{"$error":"#N/A"}}]
[{"$f":"'5. Management Effectiveness'!A1","v":"Management effectiveness"},{"$f":"'5. Management Effectiveness'!B1","v":0}]
[{"$f":"'5. Management Effectiveness'!A2","v":"20. Compliance and Enforcement"},{"$f":"'5. Management Effectiveness'!B2","v":0}]
[{"$f":"'5. Management Effectiveness'!A3","v":"Are specific programmes in place to encourage compliance with regards to marine mammals by MPA management or partner? (e.g. education, enforcement, penalties etc.)"},{"$f":"'5. Management Effectiveness'!B3","v":0},"Yes","No",null,null,2,0,null,null,{"$error":"#N/A"},{"$f":"G236","v":2}]
[{"$f":"'5. Management Effectiveness'!A4","v":"Is education and information promoting compliance readily available to marine users? "},{"$f":"'5. Management Effectiveness'!B4","v":0},"Yes","No",null,null,2,0,null,null,{"$error":"#N/A"},2]
[{"$f":"'5. Management Effectiveness'!A5","v":"Is coordination between the MPA management and other enforcement agencies (e.g. Coastguard, National Parks) effective? "},{"$f":"'5. Management Effectiveness'!B5","v":0},"Yes","No",null,null,2,0,null,null,{"$error":"#N/A"},2]
[{"$f":"'5. Management Effectiveness'!A6","v":"Is patrol capacity (vessels, staffing, aerial surveillance, vessel tracking) sufficient to enforce MPA regulations? "},{"$f":"'5. Management Effectiveness'!B6","v":0},"Yes","No",null,null,2,0,null,null,{"$error":"#N/A"},2]
[{"$f":"'5. Management Effectiveness'!A7","v":"Are penalties and their imposition sufficient to discourage actions and behaviours likely to harm marine mammals? "},{"$f":"'5. Management Effectiveness'!B7","v":0},"Yes","No",null,null,2,0,null,null,{"$error":"#N/A"},2]
[{"$f":"'5. Management Effectiveness'!A8","v":0},{"$f":"'5. Management Effectiveness'!B8","v":0},null,null,null,null,"Total Score:",null,null,null,{"$f":"SUM(K236:K240)","v":{"$error":"#N/A"}},{"$f":"SUM(L236:L240)","v":10},{"$f":"(K241/L241)*100","v":{"$error":"#N/A"}}]
[{"$f":"'5. Management Effectiveness'!A9","v":"21. Reporting / Reviewing management effectiveness"},{"$f":"'5. Management Effectiveness'!B9","v":0}]
[{"$f":"'5. Management Effectiveness'!A10","v":"Are performance measures for all marine mammal species conservation plans outlined? "},{"$f":"'5. Management Effectiveness'!B10","v":0},"Yes: All species","Yes: Some species","No",null,2,1,0,null,{"$error":"#N/A"},{"$f":"G243","v":2}]
[{"$f":"'5. Management Effectiveness'!A11","v":"Is there a schedule of periodic update reports incorporating marine mammal ecological indicators? "},{"$f":"'5. Management Effectiveness'!B11","v":0},"Yes","No",null,null,2,0,null,null,{"$error":"#N/A"},2]
[{"$f":"'5. Management Effectiveness'!A12","v":0},{"$f":"'5. Management Effectiveness'!B12","v":0},null,null,null,null,"Total Score:",null,null,null,{"$f":"SUM(K243:K244)","v":{"$error":"#N/A"}},{"$f":"SUM(L243:L244)","v":4},{"$f":"(K245/L245)*100","v":{"$error":"#N/A"}}]
[{"$f":"'5. Management Effectiveness'!A13","v":"22. Overall management capacity across all operations affecting marine mammal conservation "},{"$f":"'5. Management Effectiveness'!B13","v":0}]
[{"$f":"'5. Management Effectiveness'!A14","v":"Are staffing levels sufficient for the management for marine mammals in the MPA?"},{"$f":"'5. Management Effectiveness'!B14","v":0},"Yes","Partially lacking","Severely lacking",null,2,1,0,null,{"$error":"#N/A"},{"$f":"G247","v":2}]
[{"$f":"'5. Management Effectiveness'!A15","v":"Are the skills of staff and collaborators sufficient for the protection of marine mammals within the MPA? "},{"$f":"'5. Management Effectiveness'!B15","v":0},"Yes","Partially lacking","Severely lacking",null,2,1,0,null,{"$error":"#N/A"},2]
[{"$f":"'5. Management Effectiveness'!A16","v":"Is office and laboratory space sufficient for the protection of marine mammals within the MPA? "},{"$f":"'5. Management Effectiveness'!B16","v":0},"Yes","Partially lacking","Severely lacking",null,2,1,0,null,{"$error":"#N/A"},2]
[{"$f":"'5. Management Effectiveness'!A17","v":"Is IT hardware and software sufficient for the protection of marine mammals within the MPA?"},{"$f":"'5. Management Effectiveness'!B17","v":0},"Yes","Partially lacking","Severely lacking",null,2,1,0,null,{"$error":"#N/A"},2]
[{"$f":"'5. Management Effectiveness'!A18","v":"Is there a strategy in place to improving future operational capacity? "},{"$f":"'5. Management Effectiveness'!B18","v":0},"Yes","No",null,null,2,0,null,null,{"$error":"#N/A"},2]
[{"$f":"'5. Management Effectiveness'!A19","v":0},{"$f":"'5. Management Effectiveness'!B19","v":0},null,null,null,null,"Total Score:",null,null,null,{"$f":"SUM(K247:K251)","v":{"$error":"#N/A"}},{"$f":"SUM(L247:L251)","v":10},{"$f":"(K252/L252)*100","v":{"$error":"#N/A"}}]
[{"$f":"'5. Management Effectiveness'!A20","v":"23. Resource Allocation to Research, Monitoring and Enforcement"},{"$f":"'5. Management Effectiveness'!B20","v":0}]
[{"$f":"'5. Management Effectiveness'!A21","v":"In order to monitor the cetaceans and their threats within the MPA, are there sufficient: "},{"$f":"'5. Management Effectiveness'!B21","v":0}]
[{"$f":"'5. Management Effectiveness'!A22","v":" - marine vessels for research and enforcement? "},{"$f":"'5. Management Effectiveness'!B22","v":0},"Yes","No",null,null,1,0,null,null,{"$error":"#N/A"},{"$f":"G255","v":1}]
[{"$f":"'5. Management Effectiveness'!A23","v":" - hydrophones for monitoring cetaceans and other underwater noise? "},{"$f":"'5. Management Effectiveness'!B23","v":0},"Yes","No","Not applicable",null,1,0,"N/A",null,{"$error":"#N/A"},{"$f":"IF(ISNUMBER(SEARCH(\"N/A\",K256)),\"N/A\",G256)","v":1}]
[{"$f":"'5. Management Effectiveness'!A24","v":" - marine mammal tagging materials? "},{"$f":"'5. Management Effectiveness'!B24","v":0},"Yes","No",null,null,1,0,null,null,{"$error":"#N/A"},{"$f":"G257","v":1}]
[{"$f":"'5. Management Effectiveness'!A25","v":" - drones and/or access to light aircraft? "},{"$f":"'5. Management Effectiveness'!B25","v":0},"Yes","No",null,null,1,0,null,null,{"$error":"#N/A"},1]
[{"$f":"'5. Management Effectiveness'!A26","v":" - capacity for MPA managers or another authority to monitor shipping traffic using the AIS monitoring system? "},{"$f":"'5. Management Effectiveness'!B26","v":0},"Yes","No",null,null,1,0,null,null,{"$error":"#N/A"},1]
[{"$f":"'5. Management Effectiveness'!A27","v":" - other vessel monitoring equipment (e.g. Radar)?"},{"$f":"'5. Management Effectiveness'!B27","v":0},"Yes","No",null,null,1,0,null,null,{"$f":"INDEX(G260:J260,MATCH(B260,C260:F260,0))","v":{"$error":"#N/A"}},1]
[{"$f":"'5. Management Effectiveness'!A28","v":" - diving equipment? "},{"$f":"'5. Management Effectiveness'!B28","v":0},"Yes","No",null,null,1,0,null,null,{"$error":"#N/A"},1,null,"Management effectiveness"]
[{"$f":"'5. Management Effectiveness'!A29","v":" - photography / videography / range-finding binoculars (IR)? "},{"$f":"'5. Management Effectiveness'!B29","v":0},"Yes","No",null,null,1,0,null,null,{"$error":"#N/A"},1]
[{"$f":"'5. Management Effectiveness'!A30","v":" - necropsy, veterinary and marine mammal 'rescue' equipment?"},{"$f":"'5. Management Effectiveness'!B30","v":0},"Yes","No",null,null,1,0,null,null,{"$error":"#N/A"},1,null,"Max Score","Awarded Score","%"]
[null,null,null,null,null,null,"Total Score:",null,null,null,{"$f":"SUM(K255:K263)","v":{"$error":"#N/A"}},{"$f":"SUM(L255:L263)","v":9},{"$f":"(K264/L264)*100","v":{"$error":"#N/A"}},{"$f":"SUM(L264,L252,L245,L241)","v":33},{"$f":"SUM(K264,K252,K245,K241)","v":{"$error":"#N/A"}},{"$f":"(O264/N264)*100","v":{"$error":"#N/A"}}]

{"sheet":"Data Validation","index":12,"n_rows":197,"n_cols":31,"rows_kept":197,"cut":false,"hidden":false,"merged":[]}
["Countries",null,"Location Coordinate Projection (y)",null,"Location Coordinate Projection (x)",null,"UTM Zones #",null,"UTM Zones",null,"Regional Status",null,"International Status",null,"IUCN MPA Category Code",null,"IUCN MPA Categories",null,"MPA Governance Type",null,"Marine Mammal Species",null,"MPA Activities",null,"MPA Pressures",null,"MPA Management Plan",null,"Score Card Responses",null,"Marine Mammal Data"]
["Afghanistan",null,"Latitude",null,"Longitude",null,1,null,"X",null,"SPAW area (WCR)",null,"UNESCO-MAB Biosphere Reserve",null,"Ia",null,"Ia: Strict Nature Reserve",null,"Governance by government",null,"Delphinus capensis",null,"Artisanal/Subsistence fishing",null,"Sewage outfalls",null,"Yes",null,"Yes",null,"Observed"]
["Albania",null,"Decimal Latitude",null,"Decimal Longitude",null,2,null,"W",null,"Other: ",null,"Ramsar Site, Wetland of International Importance",null,"Ib",null,"Ib: Wilderness Area",null,"Co-management ",null,"Delphinus delphis*",null,"Commercial fishing",null,"Coral disease",null,"No",null,"No",null,"Probable"]
["Algeria",null,"Northing",null,"Easting",null,3,null,"V",null,"Not applicable",null,"World Heritage Site",null,"II",null,"II: National Park",null,"Private governance",null,"Feresa attenuata",null,"Recreational fishing",null,"Coral bleaching",null,"In revision",null,null,null,"No"]
["Andorra",null,null,null,null,null,4,null,"U ",null,null,null,"Not applicable",null,"III",null,"III: Natural Monument or Feature",null,"Governance by indigenous peoples and local communities",null,"Globicephala macrorhynchus",null,"Illegal fishing",null,"Noise pollution",null,null,null,"Yes: All species"]
["Angola",null,null,null,null,null,5,null,"T",null,null,null,null,null,"IV",null,"IV: Habitat/Species Management Area",null,null,null,"Globicephala melas*",null,"In-water tourism (diving, snorkelling, recreation, water sports)",null,"Chemical pollution",null,null,null,"Yes: Some species"]
["Antigua and Barbuda",null,null,null,null,null,6,null,"S",null,null,null,null,null,"V",null,"V: Protected Landscape/Seascape",null,null,null,"Grampus griseus",null,"Direct-marine mammal tourism (i.e Whale watching)",null,"Macro-waste pollution (incl. discarded fishing gear)",null,null,null,"No"]
["Argentina",null,null,null,null,null,7,null,"R",null,null,null,null,null,"VI",null,"VI: Protect Area with Sustainable use of Natural Resources",null,null,null,"Inia geoffrensis",null,"Navigation / shipping (including fishing, maritime transport, yachting)",null,"Habitat & resource degradation and/or destruction for marine species"]
["Armenia",null,null,null,null,null,8,null,"Q",null,null,null,null,null,null,null,"Not designated or unknown",null,null,null,"Lagenodelphis hosei",null,"Renewable energy production",null,"Fisheries (Artisanal/Subsistence)",null,null,null,"Yes"]
["Australia",null,null,null,null,null,9,null,"P",null,null,null,null,null,null,null,null,null,null,null,"Orcinus orca",null,"Fossil fuel extraction and/or prospection",null,"Fisheries (Commercial)",null,null,null,"No"]
["Austria",null,null,null,null,null,10,null,"N",null,null,null,null,null,null,null,null,null,null,null,"Peponocephala electra",null,"Other power generation (i.e. nuclear)",null,"Other",null,null,null,"Not applicable"]
["Azerbaijan",null,null,null,null,null,11,null,"M",null,null,null,null,null,null,null,null,null,null,null,"Pseudorca crassidens",null,"Coastal development"]
["The Bahamas",null,null,null,null,null,12,null,"L",null,null,null,null,null,null,null,null,null,null,null,"Sotalia fluviatilis",null,"Aquaculture",null,null,null,null,null,"Yes: The entire MPA"]
["Bahrain",null,null,null,null,null,13,null,"K",null,null,null,null,null,null,null,null,null,null,null,"Sotalia guianensis",null,"Coastal agriculture",null,null,null,null,null,"Yes: In development"]
["Bangladesh",null,null,null,null,null,14,null,"J",null,null,null,null,null,null,null,null,null,null,null,"Stenella attenuata",null,"Other  ",null,null,null,null,null,"No"]
["Barbados",null,null,null,null,null,15,null,"H",null,null,null,null,null,null,null,null,null,null,null,"Stenella clymene"]
["Belarus",null,null,null,null,null,16,null,"G",null,null,null,null,null,null,null,null,null,null,null,"Stenella coeruleoalba",null,null,null,null,null,null,null,"Yes"]
["Belgium",null,null,null,null,null,17,null,"F",null,null,null,null,null,null,null,null,null,null,null,"Stenella frontalis",null,null,null,null,null,null,null,"Yes: In development"]
["Belize",null,null,null,null,null,18,null,"E",null,null,null,null,null,null,null,null,null,null,null,"Stenella longirostris",null,null,null,null,null,null,null,"No"]
["Benin",null,null,null,null,null,19,null,"D",null,null,null,null,null,null,null,null,null,null,null,"Steno bredanensis"]
["Bhutan",null,null,null,null,null,20,null,"C",null,null,null,null,null,null,null,null,null,null,null,"Tursiops truncatus",null,null,null,null,null,null,null,"Compulsory"]
["Bolivia",null,null,null,null,null,21,null,null,null,null,null,null,null,null,null,null,null,null,null,"Kogia breviceps",null,null,null,null,null,null,null,"Encouraged"]
["Bosnia and Herzegovina",null,null,null,null,null,22,null,null,null,null,null,null,null,null,null,null,null,null,null,"Kogia sima",null,null,null,null,null,null,null,"No"]
["Botswana",null,null,null,null,null,23,null,null,null,null,null,null,null,null,null,null,null,null,null,"Physeter macrocephalus",null,null,null,null,null,null,null,"Not applicable"]
["Brazil",null,null,null,null,null,24,null,null,null,null,null,null,null,null,null,null,null,null,null,"Mesoplodon bidens*"]
["Brunei",null,null,null,null,null,25,null,null,null,null,null,null,null,null,null,null,null,null,null,"Mesoplodon densirostris",null,null,null,null,null,null,null,"Yes: Permanently"]
["Bulgaria",null,null,null,null,null,26,null,null,null,null,null,null,null,null,null,null,null,null,null,"Mesoplodon europaeus",null,null,null,null,null,null,null,"Not actively carried out"]
["Burkina Faso",null,null,null,null,null,27,null,null,null,null,null,null,null,null,null,null,null,null,null,"Mesoplodon mirus*",null,null,null,null,null,null,null,"No"]
["Burundi",null,null,null,null,null,28,null,null,null,null,null,null,null,null,null,null,null,null,null,"Ziphius cavirostris"]
["Cambodia",null,null,null,null,null,29,null,null,null,null,null,null,null,null,null,null,null,null,null,"Eubalaena glacialis*",null,null,null,null,null,null,null,"Yes"]
["Cameroon",null,null,null,null,null,30,null,null,null,null,null,null,null,null,null,null,null,null,null,"Balaenoptera acutorostrata",null,null,null,null,null,null,null,"Non-Existent"]
["Canada",null,null,null,null,null,31,null,null,null,null,null,null,null,null,null,null,null,null,null,"Balaenoptera borealis",null,null,null,null,null,null,null,"No "]
["Cape Verde",null,null,null,null,null,32,null,null,null,null,null,null,null,null,null,null,null,null,null,"Balaenoptera edeni"]
["Central African Republic",null,null,null,null,null,33,null,null,null,null,null,null,null,null,null,null,null,null,null,"Balaenoptera musculus*",null,null,null,null,null,null,null,"Yes: Banned"]
["Chad",null,null,null,null,null,34,null,null,null,null,null,null,null,null,null,null,null,null,null,"Balaenoptera physalus",null,null,null,null,null,null,null,"Yes: Restricted or banned in some areas"]
["Chile",null,null,null,null,null,35,null,null,null,null,null,null,null,null,null,null,null,null,null,"Megaptera novaeangliae",null,null,null,null,null,null,null,"No"]
["China",null,null,null,null,null,36,null,null,null,null,null,null,null,null,null,null,null,null,null,"Trichechus inunguis"]
["Colombia",null,null,null,null,null,37,null,null,null,null,null,null,null,null,null,null,null,null,null,"Trichechus manatus",null,null,null,null,null,null,null,"Yes: All net gears are banned"]
["Comoros",null,null,null,null,null,38,null,null,null,null,null,null,null,null,null,null,null,null,null,"Trichechus manatus latirostris",null,null,null,null,null,null,null,"Yes: Some net gears are banned"]
["Congo, Republic of the",null,null,null,null,null,39,null,null,null,null,null,null,null,null,null,null,null,null,null,"Trichechus manatus manatus",null,null,null,null,null,null,null,"No"]
["Congo, Democratic Republic of the",null,null,null,null,null,40]
["Costa Rica",null,null,null,null,null,41,null,null,null,null,null,null,null,null,null,null,null,null,null,null,null,null,null,null,null,null,null,"Banned"]
["Cote d'Ivoire",null,null,null,null,null,42,null,null,null,null,null,null,null,null,null,null,null,null,null,null,null,null,null,null,null,null,null,"Restricted"]
["Croatia",null,null,null,null,null,43,null,null,null,null,null,null,null,null,null,null,null,null,null,null,null,null,null,null,null,null,null,"Unrestricted"]
["Cuba",null,null,null,null,null,44]
["Cyprus",null,null,null,null,null,45,null,null,null,null,null,null,null,null,null,null,null,null,null,null,null,null,null,null,null,null,null,"Compulsory"]
["Czech Republic",null,null,null,null,null,46,null,null,null,null,null,null,null,null,null,null,null,null,null,null,null,null,null,null,null,null,null,"Encouraged"]
["Denmark",null,null,null,null,null,47,null,null,null,null,null,null,null,null,null,null,null,null,null,null,null,null,null,null,null,null,null,"No"]
["Djibouti",null,null,null,null,null,48,null,null,null,null,null,null,null,null,null,null,null,null,null,null,null,null,null,null,null,null,null,"Not applicable"]
["Dominica",null,null,null,null,null,49]
["Dominican Republic",null,null,null,null,null,50,null,null,null,null,null,null,null,null,null,null,null,null,null,null,null,null,null,null,null,null,null,"All commercial fishing vessels"]
["East Timor (Timor-Leste)",null,null,null,null,null,51,null,null,null,null,null,null,null,null,null,null,null,null,null,null,null,null,null,null,null,null,null,"Only some commercial fishing vessels"]
["Ecuador",null,null,null,null,null,52,null,null,null,null,null,null,null,null,null,null,null,null,null,null,null,null,null,null,null,null,null,"No"]
["Egypt",null,null,null,null,null,53,null,null,null,null,null,null,null,null,null,null,null,null,null,null,null,null,null,null,null,null,null,"Not applicable"]
["El Salvador",null,null,null,null,null,54]
["Equatorial Guinea",null,null,null,null,null,55,null,null,null,null,null,null,null,null,null,null,null,null,null,null,null,null,null,null,null,null,null,"Substantial and detailed"]
["Eritrea",null,null,null,null,null,56,null,null,null,null,null,null,null,null,null,null,null,null,null,null,null,null,null,null,null,null,null,"Moderate"]
["Estonia",null,null,null,null,null,57,null,null,null,null,null,null,null,null,null,null,null,null,null,null,null,null,null,null,null,null,null,"Limited or none"]
["Ethiopia",null,null,null,null,null,58]
["Fiji",null,null,null,null,null,59,null,null,null,null,null,null,null,null,null,null,null,null,null,null,null,null,null,null,null,null,null,"Annually"]
["Finland",null,null,null,null,null,60,null,null,null,null,null,null,null,null,null,null,null,null,null,null,null,null,null,null,null,null,null,"Every 2-5 years"]
["France",null,null,null,null,null,null,null,null,null,null,null,null,null,null,null,null,null,null,null,null,null,null,null,null,null,null,null,"Rarely or Never"]
["Gabon",null,null,null,null,null,null,null,null,null,null,null,null,null,null,null,null,null,null,null,null,null,null,null,null,null,null,null,"No migratory species"]
["The Gambia"]
["Georgia",null,null,null,null,null,null,null,null,null,null,null,null,null,null,null,null,null,null,null,null,null,null,null,null,null,null,null,"Multiple times per year reflecting seasonal factors "]
["Germany",null,null,null,null,null,null,null,null,null,null,null,null,null,null,null,null,null,null,null,null,null,null,null,null,null,null,null,"Every 1 or 2 years"]
["Ghana",null,null,null,null,null,null,null,null,null,null,null,null,null,null,null,null,null,null,null,null,null,null,null,null,null,null,null,"Less frequently"]
["Greece",null,null,null,null,null,null,null,null,null,null,null,null,null,null,null,null,null,null,null,null,null,null,null,null,null,null,null,"Rarely or Never"]
["Grenada"]
["Guatemala",null,null,null,null,null,null,null,null,null,null,null,null,null,null,null,null,null,null,null,null,null,null,null,null,null,null,null,"Ongoing (>6 times per year)"]
["Guinea",null,null,null,null,null,null,null,null,null,null,null,null,null,null,null,null,null,null,null,null,null,null,null,null,null,null,null,"Each season (<6 times per year)"]
["Guinea-Bissau",null,null,null,null,null,null,null,null,null,null,null,null,null,null,null,null,null,null,null,null,null,null,null,null,null,null,null,"Rarely or never"]
["Guyana"]
["Haiti",null,null,null,null,null,null,null,null,null,null,null,null,null,null,null,null,null,null,null,null,null,null,null,null,null,null,null,"Yes"]
["Honduras",null,null,null,null,null,null,null,null,null,null,null,null,null,null,null,null,null,null,null,null,null,null,null,null,null,null,null,"Partially"]
["Hungary",null,null,null,null,null,null,null,null,null,null,null,null,null,null,null,null,null,null,null,null,null,null,null,null,null,null,null,"No"]
["Iceland"]
["India",null,null,null,null,null,null,null,null,null,null,null,null,null,null,null,null,null,null,null,null,null,null,null,null,null,null,null,"Yes "]
["Indonesia",null,null,null,null,null,null,null,null,null,null,null,null,null,null,null,null,null,null,null,null,null,null,null,null,null,null,null,"Some projects"]
["Iran",null,null,null,null,null,null,null,null,null,null,null,null,null,null,null,null,null,null,null,null,null,null,null,null,null,null,null,"No"]
["Iraq"]
["Ireland",null,null,null,null,null,null,null,null,null,null,null,null,null,null,null,null,null,null,null,null,null,null,null,null,null,null,null,"Yes: Available online"]
["Israel",null,null,null,null,null,null,null,null,null,null,null,null,null,null,null,null,null,null,null,null,null,null,null,null,null,null,null,"Yes: Available upon request"]
["Italy",null,null,null,null,null,null,null,null,null,null,null,null,null,null,null,null,null,null,null,null,null,null,null,null,null,null,null,"No"]
["Jamaica"]
["Japan",null,null,null,null,null,null,null,null,null,null,null,null,null,null,null,null,null,null,null,null,null,null,null,null,null,null,null,"Yes"]
["Jordan",null,null,null,null,null,null,null,null,null,null,null,null,null,null,null,null,null,null,null,null,null,null,null,null,null,null,null,"Partially lacking"]
["Kazakhstan",null,null,null,null,null,null,null,null,null,null,null,null,null,null,null,null,null,null,null,null,null,null,null,null,null,null,null,"Severely lacking"]
["Kenya"]
["Kiribati"]
["Korea, North"]
["Korea, South"]
["Kosovo"]
["Kuwait"]
["Kyrgyzstan"]
["Laos"]
["Latvia"]
["Lebanon"]
["Lesotho"]
["Liberia"]
["Libya"]
["Liechtenstein"]
["Lithuania"]
["Luxembourg"]
["Macedonia"]
["Madagascar"]
["Malawi"]
["Malaysia"]
["Maldives"]
["Mali"]
["Malta"]
["Marshall Islands"]
["Mauritania"]
["Mauritius"]
["Mexico"]
["Micronesia, Federated States of"]
["Moldova"]
["Monaco"]
["Mongolia"]
["Montenegro"]
["Morocco"]
["Mozambique"]
["Myanmar (Burma)"]
["Namibia"]
["Nauru"]
["Nepal"]
["Netherlands"]
["New Zealand"]
["Nicaragua"]
["Niger"]
["Nigeria"]
["Norway"]
["Oman"]
["Pakistan"]
["Palau"]
["Panama"]
["Papua New Guinea"]
["Paraguay"]
["Peru"]
["Philippines"]
["Poland"]
["Portugal"]
["Qatar"]
["Romania"]
["Russia"]
["Rwanda"]
["Saint Kitts and Nevis"]
["Saint Lucia"]
["Saint Vincent and the Grenadines"]
["Samoa"]
["San Marino"]
["Sao Tome and Principe"]
["Saudi Arabia"]
["Senegal"]
["Serbia"]
["Seychelles"]
["Sierra Leone"]
["Singapore"]
["Slovakia"]
["Slovenia"]
["Solomon Islands"]
["Somalia"]
["South Africa"]
["South Sudan"]
["Spain"]
["Sri Lanka"]
["Sudan"]
["Suriname"]
["Swaziland"]
["Sweden"]
["Switzerland"]
["Syria"]
["Taiwan"]
["Tajikistan"]
["Tanzania"]
["Thailand"]
["Togo"]
["Tonga"]
["Trinidad and Tobago"]
["Tunisia"]
["Turkey"]
["Turkmenistan"]
["Tuvalu"]
["Uganda"]
["Ukraine"]
["United Arab Emirates"]
["United Kingdom"]
["United States of America"]
["Uruguay"]
["Uzbekistan"]
["Vanuatu"]
["Vatican City (Holy See)"]
["Venezuela"]
["Vietnam"]
["Yemen"]
["Zambia"]
["Zimbabwe"]

{"sheet":"References","index":13,"n_rows":2,"n_cols":1,"rows_kept":2,"cut":false,"hidden":false,"merged":[]}
["SAT References"]
["Dudley, N. (Editor) (2008). Guidelines for Applying Protected Area Management Categories. Gland, Switzerland: IUCN. x + 86pp."]